{"text_format":"1","workbook":"xlsx","n_sheets":9,"sheets":["INICIO","Qué es la AR","Etapas","Aplicativo","Anexos","Anexos (2)","Glosario","LISTA PARA VALIDACION","DESPLEGABLE"],"not_rendered":{"charts":2,"images":50,"macros":1,"external_links":0,"defined_names":66,"comments":0,"pivot_tables":0},"unopened":[],"bounds":{"document_bytes":16777216,"sheet_cells":100000,"rows_first":2000,"rows_last":500,"rows_between":2000,"halvings":0,"cell_chars":16384,"cell_head_chars":4096},"cells_cut":0,"cells_raw":0,"read":"whole","date_system":"1900"}

{"sheet":"INICIO","index":0,"n_rows":32,"n_cols":2,"rows_kept":32,"cut":false,"hidden":false,"merged":[[31,1,31,10]]}
[]
[]
[]
[]
[]
[]
[]
[]
[]
[]
[]
[]
[]
[]
[]
[]
[]
[]
[]
[]
[]
[]
[]
[]
[]
[]
[]
[]
[]
[]
[]
[null,"Oficina Asesora de Planeación"]

{"sheet":"Qué es la AR","index":1,"n_rows":86,"n_cols":3,"rows_kept":86,"cut":false,"hidden":false,"merged":[[85,0,85,4]]}
[]
[]
[]
[]
[]
[]
[]
[]
[]
[null,null,"La Administración del Riesgo es un componente del Modelo Estándar de Control Interno – MECI 1000:2005 y un requisito del Sistema de Gestión de la Calidad en la norma – NTC GP 1000:2009, que busca crear cultura de la prevención y control para que los eventos inesperados causen el mínimo daño posible."]
[]
[]
[]
[]
[]
[]
[]
[]
[]
[]
[]
[]
[]
[]
[null,null,"Sabe usted que es la Administración de riesgos?"]
[]
[null,null,"La administración de riesgos es el conjunto de acciones llevadas a cabo en forma estructurada e integral, que permite a las organizaciones identificar,  evaluar y controlar los riesgos que pueden afectar el cumplimiento de sus objetivos, con el fin de emprender en forma efectiva las medidas necesarias para responder ante ellos."]
[]
[null,null,"El decreto 1599 de 2005 la define como el conjunto de Elementos de Control que al interrelacionarse, permiten a la Entidad Pública evaluar aquellos eventos negativos, tanto internos como externos, que puedan afectar o impedir el logro de sus objetivos institucionales o los eventos positivos, que permitan identificar oportunidades, para un mejor cumplimiento de su función."]
[]
[null,null,"Cuáles son los beneficios de la Administración de Riesgos en nuestra Entidad?"]
[]
[null,null,"La Administración de riesgos en todos los niveles organizacionales, trae consigo los siguientes beneficios: "]
[]
[null,null,"Contribuir al cumplimiento de los objetivos de la Unidad y de cada proceso."]
[]
[null,null,"Consolidar la información de los riesgos para su análisis y mitigación."]
[]
[null,null,"Identificar los riesgos más relevantes al interior de cada dependencia y sus procesos."]
[]
[null,null,"Saber cómo actuar en situaciones de crisis."]
[]
[null,null,"Mejorar la cultura organizacional propiciando espacios para la participación y discusión sobre los aspectos a mejorar"]
[]
[null,null,"Fortalecer el Sistema Integrado de Gestión de la Unidad"]
[]
[null,null,"Contribuir a una planificación estratégica más efectiva al considerar los riesgos más relevantes."]
[]
[null,null,"La Administración de Riesgos busca:\nIntroducir  en los procesos y procedimientos las acciones de control para mitigar el riesgo, Involucrar y comprometer a todos los funcionarios en la búsqueda de acciones encaminadas a prevenir y administrar el riesgo, Asegurar el cumplimiento de las normas, leyes y regulaciones y Proteger los recursos de la Entidad."]
[]
[null,null,"Objetivos de la Administración de Riesgos"]
[]
[null,null,"El objetivo primordial de la Administración de riesgos es crear cultura de PREVENCIÓN Y CONTROL para que los eventos inesperados causen el mínimo impacto posible."]
[]
[null,null,"Entre los objetivos específicos se tienen:"]
[]
[null,"*","Prevenir o mitigar cualquier pérdida económica que pueda generar la ocurrencia de los riesgos, a través del diseño e implementación de planes de respuesta al riesgo, dirigidos a mantener y mejorar la efectividad de los controles existentes."]
[]
[null,"*","Proteger a los funcionarios contra accidentes que pueden causar lesiones, daños serios o muerte, mejorando y haciendo más seguras las condiciones de trabajo e implementando medidas preventivas y de protección."]
[]
[null,"*","Utilizar los recursos humanos, físicos y financieros en forma eficaz para que contribuyan al cumplimiento de los objetivos propuestos."]
[]
[null,"*","Mantener la buena imagen y las buenas relaciones de la entidad con sus grupos de interés."]
[]
[null,null,"Responsables"]
[]
[null,null,"La responsabilidad del manejo del riesgo esta en cabeza de cada uno de los Directivos con la participación activa de los servidores públicos y contratista de la Unidad, a través del ejercicio del Autocontrol, el cual esta  intrínseco en todas sus actividades."]
[]
[]
[]
[]
[]
[]
[]
[]
[]
[]
[]
[]
[]
[]
[]
[]
[]
[]
["Oficina Asesora de Planeación"]

{"sheet":"Etapas","index":2,"n_rows":40,"n_cols":4,"rows_kept":40,"cut":false,"hidden":false,"merged":[[13,7,13,18],[7,9,7,16],[10,8,10,17],[16,6,16,19],[19,5,19,20],[8,1,8,28],[36,3,36,26],[24,3,24,26],[39,0,39,29],[26,3,26,26],[28,3,28,26],[30,3,30,26],[32,3,32,26],[34,3,34,26]]}
[]
[]
[]
[]
[]
[]
[]
[]
[null,"Es un proceso dinámico, con participación de toda la Entidad cuya implementación proporciona  seguridad en cuanto al manejo de determinados eventos para que no afecten el logro de los objetivos estratégicos. El producto es el Mapa y el Plan de respuesta al Riesgo, insumos para los procesos estratégicos y de seguimiento y control."]
[]
[]
[]
[]
[]
[]
[]
[]
[]
[]
[]
[]
[]
[]
[]
[null,null,null,"Principales definiciones:"]
[]
[null,null,null,"Política institucional.  Lineamiento general que refleja el compromiso de la alta dirección."]
[]
[null,null,null,"Contexto estratégico.  Identificación de los principales factores internos y externos que representan fuente de riesgos en la Entidad."]
[]
[null,null,null,"Identificación de riesgos. Inventario de riesgos que impactan la gestión de la Entidad, con análisis de  causas y efectos."]
[]
[null,null,null,"Análisis y valoración. Determinación del nivel de riesgo antes y después de controles y prioridad para su tratamiento."]
[]
[null,null,null,"Plan de respuesta. Estrategias y acciones para mitigar los riesgos."]
[]
[null,null,null,"Monitoreo y revisión. Seguimiento y evaluación de los riesgos a través del tiempo para la tomar decisiones."]
[]
[]
["Oficina Asesora de Planeación"]

{"sheet":"Aplicativo","index":3,"n_rows":109,"n_cols":57,"rows_kept":109,"cut":false,"hidden":false,"merged":[[3,3,4,9],[3,10,4,17],[3,18,4,27],[3,28,4,38],[1,3,2,38],[1,1,4,2],[1,41,4,43],[1,44,4,51],[74,39,78,39],[9,2,13,2],[14,38,18,38],[14,37,18,37],[14,33,18,33],[5,1,7,1],[5,2,7,2],[5,9,7,9],[8,21,8,24],[8,4,8,5],[8,7,8,8],[8,11,8,12],[9,13,13,13],[9,3,13,3],[9,9,13,9],[5,30,5,34],[84,39,88,39],[89,39,93,39],[94,39,98,39],[99,39,103,39],[104,39,108,39],[9,39,13,39],[14,39,18,39],[19,39,23,39],[24,39,28,39],[29,39,33,39],[34,39,38,39],[39,39,43,39],[44,39,48,39],[49,39,53,39],[64,39,68,39],[69,39,73,39],[89,35,93,35],[89,11,93,11],[89,12,93,12],[89,13,93,13],[9,34,13,34],[9,11,13,11],[9,12,13,12],[9,16,13,16],[9,33,13,33],[14,31,18,31],[9,15,13,15],[79,33,83,33],[79,28,83,28],[74,34,78,34],[64,30,68,30],[64,31,68,31],[69,29,73,29],[74,29,78,29],[64,33,68,33],[39,12,43,12],[49,30,53,30],[49,33,53,33],[49,34,53,34],[49,28,53,28],[54,28,58,28],[49,16,53,16],[49,17,53,17],[79,39,83,39],[74,15,78,15],[69,18,73,18],[74,33,78,33],[74,31,78,31],[74,30,78,30],[79,18,83,18],[74,28,78,28],[64,16,68,16],[64,17,68,17],[59,28,63,28],[59,18,63,18],[59,29,63,29],[59,31,63,31],[59,30,63,30],[64,37,68,37],[64,38,68,38],[64,29,68,29],[74,38,78,38],[9,6,13,6],[9,32,13,32],[14,32,18,32],[9,40,13,40],[14,40,18,40],[24,6,28,6],[24,9,28,9],[39,33,43,33],[39,11,43,11],[39,6,43,6],[29,31,33,31],[34,34,38,34],[34,15,38,15],[34,16,38,16],[34,29,38,29],[24,28,28,28],[24,29,28,29],[19,35,23,35],[9,35,13,35],[29,38,33,38],[29,35,33,35],[39,38,43,38],[24,33,28,33],[24,34,28,34],[99,15,103,15],[99,35,103,35],[94,29,98,29],[99,29,103,29],[99,32,103,32],[9,1,13,1],[14,35,18,35],[14,1,18,1],[14,2,18,2],[14,6,18,6],[14,9,18,9],[14,30,18,30],[14,11,18,11],[14,13,18,13],[14,14,18,14],[14,34,18,34],[14,17,18,17],[14,12,18,12],[14,16,18,16],[14,3,18,3],[9,10,13,10],[14,10,18,10],[9,31,13,31],[9,14,13,14],[99,16,103,16],[99,17,103,17],[94,34,98,34],[94,37,98,37],[94,38,98,38],[99,37,103,37],[94,35,98,35],[99,18,103,18],[99,28,103,28],[94,18,98,18],[94,28,98,28],[99,31,103,31],[99,30,103,30],[104,1,108,1],[104,2,108,2],[104,3,108,3],[104,13,108,13],[104,16,108,16],[104,17,108,17],[104,30,108,30],[104,31,108,31],[104,37,108,37],[104,6,108,6],[104,9,108,9],[104,14,108,14],[104,11,108,11],[104,12,108,12],[104,33,108,33],[104,34,108,34],[104,35,108,35],[104,18,108,18],[104,28,108,28],[104,10,108,10],[104,15,108,15],[104,36,108,36],[104,29,108,29],[104,32,108,32],[99,1,103,1],[99,2,103,2],[99,3,103,3],[99,6,103,6],[99,13,103,13],[99,14,103,14],[99,12,103,12],[99,11,103,11],[99,9,103,9],[99,10,103,10],[94,1,98,1],[94,2,98,2],[94,3,98,3],[94,11,98,11],[94,6,98,6],[94,9,98,9],[94,31,98,31],[94,30,98,30],[94,33,98,33],[94,13,98,13],[94,14,98,14],[94,16,98,16],[94,17,98,17],[94,10,98,10],[94,12,98,12],[94,15,98,15],[89,1,93,1],[89,2,93,2],[89,3,93,3],[84,34,88,34],[84,35,88,35],[89,10,93,10],[84,16,88,16],[84,17,88,17],[84,11,88,11],[84,12,88,12],[84,13,88,13],[84,14,88,14],[84,10,88,10],[84,1,88,1],[84,2,88,2],[84,3,88,3],[84,6,88,6],[84,9,88,9],[84,29,88,29],[89,29,93,29],[89,14,93,14],[84,18,88,18],[89,18,93,18],[89,31,93,31],[89,6,93,6],[84,30,88,30],[84,31,88,31],[79,16,83,16],[79,17,83,17],[89,16,93,16],[89,17,93,17],[79,12,83,12],[79,15,83,15],[84,15,88,15],[89,15,93,15],[79,29,83,29],[89,9,93,9],[84,28,88,28],[89,28,93,28],[89,30,93,30],[79,10,83,10],[79,30,83,30],[79,31,83,31],[74,10,78,10],[69,9,73,9],[79,1,83,1],[79,2,83,2],[74,18,78,18],[74,6,78,6],[69,6,73,6],[79,6,83,6],[74,1,78,1],[74,2,78,2],[74,3,78,3],[69,14,73,14],[69,12,73,12],[69,1,73,1],[74,9,78,9],[69,16,73,16],[79,3,83,3],[79,9,83,9],[79,11,83,11],[79,13,83,13],[79,14,83,14],[74,13,78,13],[74,14,78,14],[74,11,78,11],[74,12,78,12],[74,16,78,16],[69,30,73,30],[69,11,73,11],[69,37,73,37],[69,38,73,38],[69,34,73,34],[69,35,73,35],[74,37,78,37],[74,35,78,35],[74,17,78,17],[69,31,73,31],[69,33,73,33],[64,1,68,1],[69,2,73,2],[69,3,73,3],[69,28,73,28],[69,15,73,15],[59,3,63,3],[59,6,63,6],[59,13,63,13],[59,14,63,14],[64,2,68,2],[64,3,68,3],[64,6,68,6],[64,9,68,9],[64,13,68,13],[64,14,68,14],[64,11,68,11],[64,12,68,12],[69,17,73,17],[69,13,73,13],[69,10,73,10],[64,10,68,10],[64,15,68,15],[64,28,68,28],[64,18,68,18],[49,12,53,12],[49,13,53,13],[49,14,53,14],[49,10,53,10],[54,10,58,10],[54,13,58,13],[59,16,63,16],[59,17,63,17],[59,11,63,11],[59,10,63,10],[59,15,63,15],[49,9,53,9],[59,12,63,12],[59,9,63,9],[54,14,58,14],[54,33,58,33],[54,34,58,34],[54,1,58,1],[54,2,58,2],[54,3,58,3],[54,6,58,6],[54,9,58,9],[54,31,58,31],[54,30,58,30],[54,16,58,16],[54,11,58,11],[54,18,58,18],[59,1,63,1],[59,2,63,2],[54,17,58,17],[59,34,63,34],[49,15,53,15],[54,15,58,15],[54,12,58,12],[49,11,53,11],[49,3,53,3],[49,6,53,6],[38,66,39,67],[34,10,38,10],[39,10,43,10],[44,10,48,10],[39,13,43,13],[39,14,43,14],[39,16,43,16],[44,30,48,30],[44,31,48,31],[39,17,43,17],[44,13,48,13],[44,16,48,16],[44,17,48,17],[34,35,38,35],[34,17,38,17],[34,14,38,14],[39,35,43,35],[34,28,38,28],[34,37,38,37],[39,31,43,31],[39,34,43,34],[44,14,48,14],[29,29,33,29],[29,15,33,15],[44,1,48,1],[44,2,48,2],[29,11,33,11],[49,31,53,31],[49,18,53,18],[39,2,43,2],[39,3,43,3],[39,9,43,9],[34,9,38,9],[49,1,53,1],[49,2,53,2],[34,1,38,1],[34,2,38,2],[34,3,38,3],[34,6,38,6],[34,11,38,11],[34,12,38,12],[34,13,38,13],[44,3,48,3],[44,29,48,29],[39,15,43,15],[39,1,43,1],[19,1,23,1],[19,2,23,2],[19,3,23,3],[24,1,28,1],[24,2,28,2],[24,3,28,3],[29,18,33,18],[34,18,38,18],[39,18,43,18],[24,18,28,18],[19,17,23,17],[19,6,23,6],[19,9,23,9],[19,13,23,13],[19,14,23,14],[19,11,23,11],[19,12,23,12],[19,16,23,16],[19,10,23,10],[29,1,33,1],[29,2,33,2],[29,3,33,3],[29,6,33,6],[29,9,33,9],[44,6,48,6],[44,9,48,9],[39,28,43,28],[44,28,48,28],[24,15,28,15],[24,10,28,10],[44,18,48,18],[29,28,33,28],[44,15,48,15],[24,12,28,12],[24,11,28,11],[24,14,28,14],[24,16,28,16],[24,17,28,17],[24,13,28,13],[29,17,33,17],[29,12,33,12],[29,13,33,13],[29,14,33,14],[29,16,33,16],[29,10,33,10],[44,11,48,11],[44,12,48,12],[5,21,5,24],[6,30,6,31],[6,11,6,12],[6,13,6,14],[5,11,5,14],[5,16,7,16],[5,17,7,17],[19,15,23,15],[5,26,6,27],[6,21,6,22],[9,29,13,29],[14,29,18,29],[19,29,23,29],[9,17,13,17],[9,28,13,28],[14,15,18,15],[9,18,13,18],[14,18,18,18],[14,28,18,28],[19,28,23,28],[19,18,23,18],[9,30,13,30],[8,26,8,27],[8,19,8,20],[5,3,7,3],[5,4,7,5],[5,6,7,6],[5,7,7,8],[5,10,7,10],[5,52,7,52],[5,47,5,50],[5,51,7,51],[6,47,7,47],[6,48,7,48],[6,49,7,49],[6,50,7,50],[5,43,7,43],[5,45,7,45],[5,41,7,41],[5,44,7,44],[6,33,6,34],[5,46,7,46],[5,18,7,18],[5,28,7,28],[5,40,7,40],[6,23,6,24],[5,25,7,25],[5,19,7,20],[24,31,28,31],[39,30,43,30],[19,33,23,33],[19,34,23,34],[19,31,23,31],[9,37,13,37],[9,38,13,38],[34,30,38,30],[34,31,38,31],[19,32,23,32],[24,32,28,32],[29,32,33,32],[34,32,38,32],[39,32,43,32],[24,30,28,30],[19,30,23,30],[34,33,38,33],[29,30,33,30],[24,41,28,41],[29,41,33,41],[34,41,38,41],[39,41,43,41],[44,41,48,41],[49,41,53,41],[39,37,43,37],[54,39,58,39],[59,39,63,39],[24,38,28,38],[29,37,33,37],[44,38,48,38],[34,38,38,38],[54,37,58,37],[54,38,58,38],[49,37,53,37],[49,38,53,38],[84,37,88,37],[89,38,93,38],[89,37,93,37],[99,38,103,38],[84,38,88,38],[39,29,43,29],[59,38,63,38],[59,37,63,37],[44,35,48,35],[49,35,53,35],[54,35,58,35],[44,33,48,33],[89,33,93,33],[84,33,88,33],[99,33,103,33],[99,34,103,34],[79,34,83,34],[79,35,83,35],[79,37,83,37],[79,38,83,38],[64,34,68,34],[89,34,93,34],[49,29,53,29],[54,29,58,29],[99,41,103,41],[74,41,78,41],[79,41,83,41],[94,41,98,41],[69,41,73,41],[44,34,48,34],[44,37,48,37],[59,33,63,33],[14,36,18,36],[19,36,23,36],[69,36,73,36],[74,36,78,36],[79,36,83,36],[24,35,28,35],[24,37,28,37],[64,35,68,35],[59,35,63,35],[29,33,33,33],[29,34,33,34],[84,36,88,36],[89,36,93,36],[94,36,98,36],[99,36,103,36],[64,36,68,36],[104,41,108,41],[19,40,23,40],[24,40,28,40],[29,40,33,40],[34,40,38,40],[39,40,43,40],[44,40,48,40],[49,40,53,40],[54,40,58,40],[59,40,63,40],[64,40,68,40],[69,40,73,40],[74,40,78,40],[79,40,83,40],[84,40,88,40],[89,40,93,40],[94,40,98,40],[99,40,103,40],[104,40,108,40],[54,41,58,41],[59,41,63,41],[64,41,68,41],[84,41,88,41],[89,41,93,41],[104,38,108,38],[1,56,4,67],[24,36,28,36],[29,36,33,36],[34,36,38,36],[39,36,43,36],[44,36,48,36],[49,36,53,36],[54,36,58,36],[59,36,63,36],[9,36,13,36],[5,35,5,38],[6,35,7,35],[6,36,7,36],[6,37,7,37],[6,38,7,38],[6,56,8,65],[8,47,8,48],[8,49,8,50],[9,41,13,41],[14,41,18,41],[19,41,23,41],[19,37,23,37],[19,38,23,38],[44,32,48,32],[49,32,53,32],[54,32,58,32],[59,32,63,32],[74,32,78,32],[79,32,83,32],[84,32,88,32],[89,32,93,32],[94,32,98,32],[64,32,68,32],[69,32,73,32]]}
[]
[null,null,null,"FORMATO PARA EL LEVANTAMIENTO DEL MAPA DE RIESGOS DE LA UNIDAD\nProceso de Direccionamiento Estratégico\nProcedimiento de Administración de Riesgos Institucionales y de Proceso",null,null,null,null,null,null,null,null,null,null,null,null,null,null,null,null,null,null,null,null,null,null,null,null,null,null,null,null,null,null,null,null,null,null,null,null,"Codigo: 100,01,15-1",null,null,null,"PLAN DE RESPUESTA AL RIESGO \nVIGENCIA III CUATRIMESTRE DE 2013 - III CUATRIMESTRE DE 2014\nProceso de Direccionamiento Estratégico\nProcedimiento de Administración de Riesgos Institucionales y de Proceso",null,null,null,null,null,null,null,"Codigo :100,01,15-2",null,null,null,"ANÁLISIS GRÁFICO DE LOS RESULTADOS DE LA  MATRIZ DE SEVERIDAD \nANTES Y DESPUÉS DE CONTROLES"]
[null,null,null,null,null,null,null,null,null,null,null,null,null,null,null,null,null,null,null,null,null,null,null,null,null,null,null,null,null,null,null,null,null,null,null,null,null,null,null,null,"Versión: 01",null,null,null,null,null,null,null,null,null,null,null,"Versión: 01"]
[null,null,null,"IDENTIFICACIÓN DE LOS RIESGOS",null,null,null,null,null,null,"ANÁLISIS Y VALORACIÓN DE LOS RIESGOS ESCENARIO ANTES DE CONTROLES",null,null,null,null,null,null,null," DESCRIPCIÓN Y CALIFICACIÓN  DE LOS CONTROLES EXISTENTES PARA LA MITIGACIÓN DE LOS RIESGOS",null,null,null,null,null,null,null,null,null,"ETAPA DE ANÁLISIS Y VALORACIÓN DE LOS RIESGOS ESCENARIO APLICANDO LOS CONTROLES EXISTENTES                                           ",null,null,null,null,null,null,null,null,null,null,null,"Fecha: 31 /10/2013",null,null,null,null,null,null,null,null,null,null,null,"Fecha: 31 /10/2013"]
[null,null,null,null,null,null,null,null,null,null,null,null,null,null,null,null,null,null,null,null,null,null,null,null,null,null,null,null,null,null,null,null,null,null,null,null,null,null,null,null,"Página:",null,null,null,null,null,null,null,null,null,null,null,"Página:"]
[null,"Ítem","Objetivo estratégico","Proceso","Causas",null,"Riesgo ","Efectos",null,"Tipo de del riesgo","Riesgo ","Calificación sin controles",null,null,null,null,"Nivel de riesgo sin controles (NRSC)","Evaluación sin controles","Riesgo ","Descripción del control",null,"Tipo de controles",null,null,null,"Registro","Calificación de cada control",null,"Riesgo ",null,"Calificación con controles",null,null,null,null,"Resultados de la evaluación",null,null,null,null,"El riesgo identificado hace parte del Mapa de riesgos Institucional?","Riesgo ",null,"Medida de tratamiento a seguir","Nueva acción de control \no mejoras al control existente","Fecha de inicio\n(mes y año)","Tiempo programado en meses","Meta cuatrimestral",null,null,null,"Responsable","Observaciones"]
[null,null,null,null,null,null,null,null,null,null,null,"OCURRENCIA",null,"IMPACTO",null,null,null,null,null,null,null,"Disminuye la ocurrencia",null,"Disminuye el impacto",null,null,null,null,null,null,"OCURRENCIA",null,null,"IMPACTO",null,"Nivel de riesgo\n sin controles (NRSC)","Evaluación \nsin controles","Nivel de riesgo \ncon controles (NRCC)","Evaluación \naplicando los controles existentes",null,null,null,null,null,null,null,null,"Ene-Abril \n2014","May - Agos\n2014","Sep - Dic\n2014","Ene-Abril 2015",null,null,null,null,null,"Gráficos donde se conjugan los conceptos de: Matriz I/P, Criterios de severidad (semáforo),  Evaluación (zonas) y las Políticas específicas o también denominadas Medidas de tratamiento a seguir para mitigar los riesgos."]
[null,null,null,null,null,null,null,null,null,null,null,"Valor","Nivel","Valor","Nivel",null,null,null,null,null,null,"Preventivo","Detectivo","Protección","Correctivo",null,"Valor","Nivel",null,null,"Valor","Nivel",null,"Valor","Nivel"]
[null,null,null,null,null,null,null,null,null,null,"A",null,null,null,null,null,null,null,"A",null,null,null,null,null,null,null,null,null,"A",null,null,null,null,null,null,null,null,null,null,null,"J","A"]
[null,1,null,null,null,null,null,null,null,null,{"$f":"G10","v":0},null,{"$f":"IF(L10=1,\"Muy baja\",IF(L10=2,\"Baja\",IF(L10=3,\"Media\",IF(L10=4,\"Alta\",IF(L10=5,\"Muy alta\",\" \")))))","v":" "},null,{"$f":"IF(N10=4,\"Insignificante\",IF(N10=8,\"Menor\",IF(N10=12,\"Moderado\",IF(N10=16,\"Mayor\",IF(N10=20,\"Catastrófico\",IF(N10=\"No aplica\",\"No aplica\",\" \"))))))","v":" "},{"$f":"J10&1","v":"1"},{"$f":"IFERROR(L10*N10,\"No aplica\")","v":0},{"$f":"IF(AND(L10=1,N10=4),\"Aceptable\",IF(AND(L10=2,N10=4),\"Aceptable\",IF(AND(L10=3,N10=4),\"Aceptable\",IF(AND(L10=4,N10=4),\"Tolerable\",IF(AND(L10=5,N10=4),\"Importante\",IF(AND(L10=1,N10=8),\"Aceptable\",IF(AND(L10=2,N10=8),\"Aceptable\",IF(AND(L10=3,N10=8),\"Tolerable\",IF(AND(L10=4,N10=8),\"Importante\",IF(AND(L10=5,N10=8),\"Importante\",IF(AND(L10=1,N10=12),\"Tolerable\",IF(AND(L10=2,N10=12),\"Tolerable\",IF(AND(L10=3,N10=12),\"Importante\",IF(AND(L10=4,N10=12),\"Importante\",IF(AND(L10=5,N10=12),\"Inaceptable\",IF(AND(L10=1,N10=16),\"Importante\",IF(AND(L10=2,N10=16),\"Importante\",IF(AND(L10=3,N10=16),\"Inaceptable\",IF(AND(L10=4,N10=16),\"Inaceptable\",IF(AND(L10=5,N10=16),\"Inaceptable\",IF(AND(L10=1,N10=20),\"Importante\",IF(AND(L10=2,N10=20),\"Inaceptable\",IF(AND(L10=3,N10=20),\"Inaceptable\",IF(AND(L10=4,N10=20),\"Inaceptable\",IF(AND(L10=5,N10=20),\"Inaceptable\",IF(Q10=\"No aplica\",\"No aplica\",\" \"))))))))))))))))))))))))))","v":" "},{"$f":"K10","v":0},1,null,null,null,null,null,null,null,{"$f":"+IF(AA10=1,\"Nulo\",IF(AA10=2,\"Bajo\",IF(AA10=3,\"Medio\",IF(AA10=4,\"Alto\",IF(AA10=5,\"Muy alto\",\" \")))))","v":" "},{"$f":"S10","v":0},{"$f":"J10&2","v":"2"},null,{"$f":"IF(AE10=1,\"Muy baja\",IF(AE10=2,\"Baja\",IF(AE10=3,\"Media\",IF(AE10=4,\"Alta\",IF(AE10=5,\"Muy alta\",IF(AE10=\"No aplica\",\"No aplica\",\" \"))))))","v":" "},{"$f":"J10&3","v":"3"},null,{"$f":"IF(AH10=4,\"Insignificante\",IF(AH10=8,\"Menor\",IF(AH10=12,\"Moderado\",IF(AH10=16,\"Mayor\",IF(AH10=20,\"Catastrófico\",IF(AH10=\"No aplica\",\"No aplica\",\" \"))))))","v":" "},{"$f":"Q10","v":0},{"$f":"R10","v":" "},{"$f":"IFERROR(AE10*AH10,\"No aplica\")","v":0},{"$f":"IF(AND(AE10=1,AH10=4),\"Aceptable\",IF(AND(AE10=2,AH10=4),\"Aceptable\",IF(AND(AE10=3,AH10=4),\"Aceptable\",IF(AND(AE10=4,AH10=4),\"Tolerable\",IF(AND(AE10=5,AH10=4),\"Importante\",IF(AND(AE10=1,AH10=8),\"Aceptable\",IF(AND(AE10=2,AH10=8),\"Aceptable\",IF(AND(AE10=3,AH10=8),\"Tolerable\",IF(AND(AE10=4,AH10=8),\"Importante\",IF(AND(AE10=5,AH10=8),\"Importante\",IF(AND(AE10=1,AH10=12),\"Tolerable\",IF(AND(AE10=2,AH10=12),\"Tolerable\",IF(AND(AE10=3,AH10=12),\"Importante\",IF(AND(AE10=4,AH10=12),\"Importante\",IF(AND(AE10=5,AH10=12),\"Inaceptable\",IF(AND(AE10=1,AH10=16),\"Importante\",IF(AND(AE10=2,AH10=16),\"Importante\",IF(AND(AE10=3,AH10=16),\"Inaceptable\",IF(AND(AE10=4,AH10=16),\"Inaceptable\",IF(AND(AE10=5,AH10=16),\"Inaceptable\",IF(AND(AE10=1,AH10=20),\"Importante\",IF(AND(AE10=2,AH10=20),\"Inaceptable\",IF(AND(AE10=3,AH10=20),\"Inaceptable\",IF(AND(AE10=4,AH10=20),\"Inaceptable\",IF(AND(AE10=5,AH10=20),\"Inaceptable\",IF(AE10=\"No aplica\",\"No aplica\",\" \"))))))))))))))))))))))))))","v":" "},{"$f":"J10&4","v":"4"},null,null,1,null,null,null,null,null,null,null,null,"Oficina Asesora  de Planeación"]
[null,null,null,null,null,null,null,null,null,null,null,null,null,null,null,null,null,null,null,2,null,null,null,null,null,null,null,{"$f":"+IF(AA11=1,\"Nulo\",IF(AA11=2,\"Bajo\",IF(AA11=3,\"Medio\",IF(AA11=4,\"Alto\",IF(AA11=5,\"Muy alto\",\" \")))))","v":" "},null,null,null,null,null,null,null,null,null,null,null,null,null,null,2]
[null,null,null,null,null,null,null,null,null,null,null,null,null,null,null,null,null,null,null,3,null,null,null,null,null,null,null," ",null,null,null,null,null,null,null,null,null,null,null,null,null,null,3]
[null,null,null,null,null,null,null,null,null,null,null,null,null,null,null,null,null,null,null,4,null,null,null,null,null,null,null," ",null,null,null,null,null,null,null,null,null,null,null,null,null,null,4]
[null,null,null,null,null,null,null,null,null,null,null,null,null,null,null,null,null,null,null,5,null,null,null,null,null,null,null," ",null,null,null,null,null,null,null,null,null,null,null,null,null,null,5]
[null,{"$f":"B10+1","v":2},null,null,1,null,null,1,null,null,{"$f":"G15","v":0},null,{"$f":"IF(L15=1,\"Muy baja\",IF(L15=2,\"Baja\",IF(L15=3,\"Media\",IF(L15=4,\"Alta\",IF(L15=5,\"Muy alta\",\" \")))))","v":" "},null,{"$f":"IF(N15=4,\"Insignificante\",IF(N15=8,\"Menor\",IF(N15=12,\"Moderado\",IF(N15=16,\"Mayor\",IF(N15=20,\"Catastrófico\",IF(N15=\"No aplica\",\"No aplica\",\" \"))))))","v":" "},{"$f":"J15&1","v":"1"},{"$f":"IFERROR(L15*N15,\"No aplica\")","v":0},{"$f":"IF(AND(L15=1,N15=4),\"Aceptable\",IF(AND(L15=2,N15=4),\"Aceptable\",IF(AND(L15=3,N15=4),\"Aceptable\",IF(AND(L15=4,N15=4),\"Tolerable\",IF(AND(L15=5,N15=4),\"Importante\",IF(AND(L15=1,N15=8),\"Aceptable\",IF(AND(L15=2,N15=8),\"Aceptable\",IF(AND(L15=3,N15=8),\"Tolerable\",IF(AND(L15=4,N15=8),\"Importante\",IF(AND(L15=5,N15=8),\"Importante\",IF(AND(L15=1,N15=12),\"Tolerable\",IF(AND(L15=2,N15=12),\"Tolerable\",IF(AND(L15=3,N15=12),\"Importante\",IF(AND(L15=4,N15=12),\"Importante\",IF(AND(L15=5,N15=12),\"Inaceptable\",IF(AND(L15=1,N15=16),\"Importante\",IF(AND(L15=2,N15=16),\"Importante\",IF(AND(L15=3,N15=16),\"Inaceptable\",IF(AND(L15=4,N15=16),\"Inaceptable\",IF(AND(L15=5,N15=16),\"Inaceptable\",IF(AND(L15=1,N15=20),\"Importante\",IF(AND(L15=2,N15=20),\"Inaceptable\",IF(AND(L15=3,N15=20),\"Inaceptable\",IF(AND(L15=4,N15=20),\"Inaceptable\",IF(AND(L15=5,N15=20),\"Inaceptable\",IF(Q15=\"No aplica\",\"No aplica\",\" \"))))))))))))))))))))))))))","v":" "},{"$f":"K15","v":0},1,null,null,null,null,null,null,null," ",{"$f":"S15","v":0},{"$f":"J15&2","v":"2"},null,{"$f":"IF(AE15=1,\"Muy baja\",IF(AE15=2,\"Baja\",IF(AE15=3,\"Media\",IF(AE15=4,\"Alta\",IF(AE15=5,\"Muy alta\",IF(AE15=\"No aplica\",\"No aplica\",\" \"))))))","v":" "},{"$f":"J15&3","v":"3"},null,{"$f":"IF(AH15=4,\"Insignificante\",IF(AH15=8,\"Menor\",IF(AH15=12,\"Moderado\",IF(AH15=16,\"Mayor\",IF(AH15=20,\"Catastrófico\",IF(AH15=\"No aplica\",\"No aplica\",\" \"))))))","v":" "},{"$f":"Q15","v":0},{"$f":"R15","v":" "},{"$f":"IFERROR(AE15*AH15,\"No aplica\")","v":0},{"$f":"IF(AND(AE15=1,AH15=4),\"Aceptable\",IF(AND(AE15=2,AH15=4),\"Aceptable\",IF(AND(AE15=3,AH15=4),\"Aceptable\",IF(AND(AE15=4,AH15=4),\"Tolerable\",IF(AND(AE15=5,AH15=4),\"Importante\",IF(AND(AE15=1,AH15=8),\"Aceptable\",IF(AND(AE15=2,AH15=8),\"Aceptable\",IF(AND(AE15=3,AH15=8),\"Tolerable\",IF(AND(AE15=4,AH15=8),\"Importante\",IF(AND(AE15=5,AH15=8),\"Importante\",IF(AND(AE15=1,AH15=12),\"Tolerable\",IF(AND(AE15=2,AH15=12),\"Tolerable\",IF(AND(AE15=3,AH15=12),\"Importante\",IF(AND(AE15=4,AH15=12),\"Importante\",IF(AND(AE15=5,AH15=12),\"Inaceptable\",IF(AND(AE15=1,AH15=16),\"Importante\",IF(AND(AE15=2,AH15=16),\"Importante\",IF(AND(AE15=3,AH15=16),\"Inaceptable\",IF(AND(AE15=4,AH15=16),\"Inaceptable\",IF(AND(AE15=5,AH15=16),\"Inaceptable\",IF(AND(AE15=1,AH15=20),\"Importante\",IF(AND(AE15=2,AH15=20),\"Inaceptable\",IF(AND(AE15=3,AH15=20),\"Inaceptable\",IF(AND(AE15=4,AH15=20),\"Inaceptable\",IF(AND(AE15=5,AH15=20),\"Inaceptable\",IF(AE15=\"No aplica\",\"No aplica\",\" \"))))))))))))))))))))))))))","v":" "},{"$f":"J15&4","v":"4"},null,{"$f":"AC15","v":0},1]
[null,null,null,null,2,null,null,2,null,null,null,null,null,null,null,null,null,null,null,2,null,null,null,null,null,null,null," ",null,null,null,null,null,null,null,null,null,null,null,null,null,null,2]
[null,null,null,null,3,null,null,3,null,null,null,null,null,null,null,null,null,null,null,3,null,null,null,null,null,null,null," ",null,null,null,null,null,null,null,null,null,null,null,null,null,null,3]
[null,null,null,null,4,null,null,4,null,null,null,null,null,null,null,null,null,null,null,4,null,null,null,null,null,null,null," ",null,null,null,null,null,null,null,null,null,null,null,null,null,null,4]
[null,null,null,null,5,null,null,5,null,null,null,null,null,null,null,null,null,null,null,5,null,null,null,null,null,null,null," ",null,null,null,null,null,null,null,null,null,null,null,null,null,null,5]
[null,{"$f":"B15+1","v":3},null,null,1,null,null,1,null,null,{"$f":"G20","v":0},null,{"$f":"IF(L20=1,\"Muy baja\",IF(L20=2,\"Baja\",IF(L20=3,\"Media\",IF(L20=4,\"Alta\",IF(L20=5,\"Muy alta\",\" \")))))","v":" "},null,{"$f":"IF(N20=4,\"Insignificante\",IF(N20=8,\"Menor\",IF(N20=12,\"Moderado\",IF(N20=16,\"Mayor\",IF(N20=20,\"Catastrófico\",IF(N20=\"No aplica\",\"No aplica\",\" \"))))))","v":" "},{"$f":"J20&1","v":"1"},{"$f":"IFERROR(L20*N20,\"No aplica\")","v":0},{"$f":"IF(AND(L20=1,N20=4),\"Aceptable\",IF(AND(L20=2,N20=4),\"Aceptable\",IF(AND(L20=3,N20=4),\"Aceptable\",IF(AND(L20=4,N20=4),\"Tolerable\",IF(AND(L20=5,N20=4),\"Importante\",IF(AND(L20=1,N20=8),\"Aceptable\",IF(AND(L20=2,N20=8),\"Aceptable\",IF(AND(L20=3,N20=8),\"Tolerable\",IF(AND(L20=4,N20=8),\"Importante\",IF(AND(L20=5,N20=8),\"Importante\",IF(AND(L20=1,N20=12),\"Tolerable\",IF(AND(L20=2,N20=12),\"Tolerable\",IF(AND(L20=3,N20=12),\"Importante\",IF(AND(L20=4,N20=12),\"Importante\",IF(AND(L20=5,N20=12),\"Inaceptable\",IF(AND(L20=1,N20=16),\"Importante\",IF(AND(L20=2,N20=16),\"Importante\",IF(AND(L20=3,N20=16),\"Inaceptable\",IF(AND(L20=4,N20=16),\"Inaceptable\",IF(AND(L20=5,N20=16),\"Inaceptable\",IF(AND(L20=1,N20=20),\"Importante\",IF(AND(L20=2,N20=20),\"Inaceptable\",IF(AND(L20=3,N20=20),\"Inaceptable\",IF(AND(L20=4,N20=20),\"Inaceptable\",IF(AND(L20=5,N20=20),\"Inaceptable\",IF(Q20=\"No aplica\",\"No aplica\",\" \"))))))))))))))))))))))))))","v":" "},{"$f":"K20","v":0},1,null,null,null,null,null,null,null," ",{"$f":"S20","v":0},{"$f":"J20&2","v":"2"},null,{"$f":"IF(AE20=1,\"Muy baja\",IF(AE20=2,\"Baja\",IF(AE20=3,\"Media\",IF(AE20=4,\"Alta\",IF(AE20=5,\"Muy alta\",IF(AE20=\"No aplica\",\"No aplica\",\" \"))))))","v":" "},{"$f":"J20&3","v":"3"},null,{"$f":"IF(AH20=4,\"Insignificante\",IF(AH20=8,\"Menor\",IF(AH20=12,\"Moderado\",IF(AH20=16,\"Mayor\",IF(AH20=20,\"Catastrófico\",IF(AH20=\"No aplica\",\"No aplica\",\" \"))))))","v":" "},{"$f":"Q20","v":0},{"$f":"R20","v":" "},{"$f":"IFERROR(AE20*AH20,\"No aplica\")","v":0},{"$f":"IF(AND(AE20=1,AH20=4),\"Aceptable\",IF(AND(AE20=2,AH20=4),\"Aceptable\",IF(AND(AE20=3,AH20=4),\"Aceptable\",IF(AND(AE20=4,AH20=4),\"Tolerable\",IF(AND(AE20=5,AH20=4),\"Importante\",IF(AND(AE20=1,AH20=8),\"Aceptable\",IF(AND(AE20=2,AH20=8),\"Aceptable\",IF(AND(AE20=3,AH20=8),\"Tolerable\",IF(AND(AE20=4,AH20=8),\"Importante\",IF(AND(AE20=5,AH20=8),\"Importante\",IF(AND(AE20=1,AH20=12),\"Tolerable\",IF(AND(AE20=2,AH20=12),\"Tolerable\",IF(AND(AE20=3,AH20=12),\"Importante\",IF(AND(AE20=4,AH20=12),\"Importante\",IF(AND(AE20=5,AH20=12),\"Inaceptable\",IF(AND(AE20=1,AH20=16),\"Importante\",IF(AND(AE20=2,AH20=16),\"Importante\",IF(AND(AE20=3,AH20=16),\"Inaceptable\",IF(AND(AE20=4,AH20=16),\"Inaceptable\",IF(AND(AE20=5,AH20=16),\"Inaceptable\",IF(AND(AE20=1,AH20=20),\"Importante\",IF(AND(AE20=2,AH20=20),\"Inaceptable\",IF(AND(AE20=3,AH20=20),\"Inaceptable\",IF(AND(AE20=4,AH20=20),\"Inaceptable\",IF(AND(AE20=5,AH20=20),\"Inaceptable\",IF(AE20=\"No aplica\",\"No aplica\",\" \"))))))))))))))))))))))))))","v":" "},{"$f":"J20&4","v":"4"},null,{"$f":"AC20","v":0},1]
[null,null,null,null,2,null,null,2,null,null,null,null,null,null,null,null,null,null,null,2,null,null,null,null,null,null,null," ",null,null,null,null,null,null,null,null,null,null,null,null,null,null,2]
[null,null,null,null,3,null,null,3,null,null,null,null,null,null,null,null,null,null,null,3,null,null,null,null,null,null,null," ",null,null,null,null,null,null,null,null,null,null,null,null,null,null,3]
[null,null,null,null,4,null,null,4,null,null,null,null,null,null,null,null,null,null,null,4,null,null,null,null,null,null,null," ",null,null,null,null,null,null,null,null,null,null,null,null,null,null,4]
[null,null,null,null,5,null,null,5,null,null,null,null,null,null,null,null,null,null,null,5,null,null,null,null,null,null,null," ",null,null,null,null,null,null,null,null,null,null,null,null,null,null,5]
[null,{"$f":"B20+1","v":4},null,null,null,null,null,null,null,null,{"$f":"G25","v":0},null,{"$f":"IF(L25=1,\"Muy baja\",IF(L25=2,\"Baja\",IF(L25=3,\"Media\",IF(L25=4,\"Alta\",IF(L25=5,\"Muy alta\",\" \")))))","v":" "},null,{"$f":"IF(N25=4,\"Insignificante\",IF(N25=8,\"Menor\",IF(N25=12,\"Moderado\",IF(N25=16,\"Mayor\",IF(N25=20,\"Catastrófico\",IF(N25=\"No aplica\",\"No aplica\",\" \"))))))","v":" "},{"$f":"J25&1","v":"1"},{"$f":"IFERROR(L25*N25,\"No aplica\")","v":0},{"$f":"IF(AND(L25=1,N25=4),\"Aceptable\",IF(AND(L25=2,N25=4),\"Aceptable\",IF(AND(L25=3,N25=4),\"Aceptable\",IF(AND(L25=4,N25=4),\"Tolerable\",IF(AND(L25=5,N25=4),\"Importante\",IF(AND(L25=1,N25=8),\"Aceptable\",IF(AND(L25=2,N25=8),\"Aceptable\",IF(AND(L25=3,N25=8),\"Tolerable\",IF(AND(L25=4,N25=8),\"Importante\",IF(AND(L25=5,N25=8),\"Importante\",IF(AND(L25=1,N25=12),\"Tolerable\",IF(AND(L25=2,N25=12),\"Tolerable\",IF(AND(L25=3,N25=12),\"Importante\",IF(AND(L25=4,N25=12),\"Importante\",IF(AND(L25=5,N25=12),\"Inaceptable\",IF(AND(L25=1,N25=16),\"Importante\",IF(AND(L25=2,N25=16),\"Importante\",IF(AND(L25=3,N25=16),\"Inaceptable\",IF(AND(L25=4,N25=16),\"Inaceptable\",IF(AND(L25=5,N25=16),\"Inaceptable\",IF(AND(L25=1,N25=20),\"Importante\",IF(AND(L25=2,N25=20),\"Inaceptable\",IF(AND(L25=3,N25=20),\"Inaceptable\",IF(AND(L25=4,N25=20),\"Inaceptable\",IF(AND(L25=5,N25=20),\"Inaceptable\",IF(Q25=\"No aplica\",\"No aplica\",\" \"))))))))))))))))))))))))))","v":" "},{"$f":"K25","v":0},1,null,null,null,null,null,null,null," ",{"$f":"S25","v":0},{"$f":"J25&2","v":"2"},null,{"$f":"IF(AE25=1,\"Muy baja\",IF(AE25=2,\"Baja\",IF(AE25=3,\"Media\",IF(AE25=4,\"Alta\",IF(AE25=5,\"Muy alta\",IF(AE25=\"No aplica\",\"No aplica\",\" \"))))))","v":" "},{"$f":"J25&3","v":"3"},null,{"$f":"IF(AH25=4,\"Insignificante\",IF(AH25=8,\"Menor\",IF(AH25=12,\"Moderado\",IF(AH25=16,\"Mayor\",IF(AH25=20,\"Catastrófico\",IF(AH25=\"No aplica\",\"No aplica\",\" \"))))))","v":" "},{"$f":"Q25","v":0},{"$f":"R25","v":" "},{"$f":"IFERROR(AE25*AH25,\"No aplica\")","v":0},{"$f":"IF(AND(AE25=1,AH25=4),\"Aceptable\",IF(AND(AE25=2,AH25=4),\"Aceptable\",IF(AND(AE25=3,AH25=4),\"Aceptable\",IF(AND(AE25=4,AH25=4),\"Tolerable\",IF(AND(AE25=5,AH25=4),\"Importante\",IF(AND(AE25=1,AH25=8),\"Aceptable\",IF(AND(AE25=2,AH25=8),\"Aceptable\",IF(AND(AE25=3,AH25=8),\"Tolerable\",IF(AND(AE25=4,AH25=8),\"Importante\",IF(AND(AE25=5,AH25=8),\"Importante\",IF(AND(AE25=1,AH25=12),\"Tolerable\",IF(AND(AE25=2,AH25=12),\"Tolerable\",IF(AND(AE25=3,AH25=12),\"Importante\",IF(AND(AE25=4,AH25=12),\"Importante\",IF(AND(AE25=5,AH25=12),\"Inaceptable\",IF(AND(AE25=1,AH25=16),\"Importante\",IF(AND(AE25=2,AH25=16),\"Importante\",IF(AND(AE25=3,AH25=16),\"Inaceptable\",IF(AND(AE25=4,AH25=16),\"Inaceptable\",IF(AND(AE25=5,AH25=16),\"Inaceptable\",IF(AND(AE25=1,AH25=20),\"Importante\",IF(AND(AE25=2,AH25=20),\"Inaceptable\",IF(AND(AE25=3,AH25=20),\"Inaceptable\",IF(AND(AE25=4,AH25=20),\"Inaceptable\",IF(AND(AE25=5,AH25=20),\"Inaceptable\",IF(AE25=\"No aplica\",\"No aplica\",\" \"))))))))))))))))))))))))))","v":" "},{"$f":"J25&4","v":"4"},null,{"$f":"AC25","v":0},1]
[null,null,null,null,null,null,null,null,null,null,null,null,null,null,null,null,null,null,null,2,null,null,null,null,null,null,null," ",null,null,null,null,null,null,null,null,null,null,null,null,null,null,2]
[null,null,null,null,null,null,null,null,null,null,null,null,null,null,null,null,null,null,null,3,null,null,null,null,null,null,null," ",null,null,null,null,null,null,null,null,null,null,null,null,null,null,3]
[null,null,null,null,null,null,null,null,null,null,null,null,null,null,null,null,null,null,null,4,null,null,null,null,null,null,null," ",null,null,null,null,null,null,null,null,null,null,null,null,null,null,4]
[null,null,null,null,null,null,null,null,null,null,null,null,null,null,null,null,null,null,null,5,null,null,null,null,null,null,null," ",null,null,null,null,null,null,null,null,null,null,null,null,null,null,5]
[null,{"$f":"B25+1","v":5},null,null,null,null,null,null,null,null,{"$f":"G30","v":0},null,{"$f":"IF(L30=1,\"Muy baja\",IF(L30=2,\"Baja\",IF(L30=3,\"Media\",IF(L30=4,\"Alta\",IF(L30=5,\"Muy alta\",\" \")))))","v":" "},null,{"$f":"IF(N30=4,\"Insignificante\",IF(N30=8,\"Menor\",IF(N30=12,\"Moderado\",IF(N30=16,\"Mayor\",IF(N30=20,\"Catastrófico\",IF(N30=\"No aplica\",\"No aplica\",\" \"))))))","v":" "},{"$f":"J30&1","v":"1"},{"$f":"IFERROR(L30*N30,\"No aplica\")","v":0},{"$f":"IF(AND(L30=1,N30=4),\"Aceptable\",IF(AND(L30=2,N30=4),\"Aceptable\",IF(AND(L30=3,N30=4),\"Aceptable\",IF(AND(L30=4,N30=4),\"Tolerable\",IF(AND(L30=5,N30=4),\"Importante\",IF(AND(L30=1,N30=8),\"Aceptable\",IF(AND(L30=2,N30=8),\"Aceptable\",IF(AND(L30=3,N30=8),\"Tolerable\",IF(AND(L30=4,N30=8),\"Importante\",IF(AND(L30=5,N30=8),\"Importante\",IF(AND(L30=1,N30=12),\"Tolerable\",IF(AND(L30=2,N30=12),\"Tolerable\",IF(AND(L30=3,N30=12),\"Importante\",IF(AND(L30=4,N30=12),\"Importante\",IF(AND(L30=5,N30=12),\"Inaceptable\",IF(AND(L30=1,N30=16),\"Importante\",IF(AND(L30=2,N30=16),\"Importante\",IF(AND(L30=3,N30=16),\"Inaceptable\",IF(AND(L30=4,N30=16),\"Inaceptable\",IF(AND(L30=5,N30=16),\"Inaceptable\",IF(AND(L30=1,N30=20),\"Importante\",IF(AND(L30=2,N30=20),\"Inaceptable\",IF(AND(L30=3,N30=20),\"Inaceptable\",IF(AND(L30=4,N30=20),\"Inaceptable\",IF(AND(L30=5,N30=20),\"Inaceptable\",IF(Q30=\"No aplica\",\"No aplica\",\" \"))))))))))))))))))))))))))","v":" "},{"$f":"K30","v":0},1,null,null,null,null,null,null,null," ",{"$f":"S30","v":0},{"$f":"J30&2","v":"2"},null,{"$f":"IF(AE30=1,\"Muy baja\",IF(AE30=2,\"Baja\",IF(AE30=3,\"Media\",IF(AE30=4,\"Alta\",IF(AE30=5,\"Muy alta\",IF(AE30=\"No aplica\",\"No aplica\",\" \"))))))","v":" "},{"$f":"J30&3","v":"3"},null,{"$f":"IF(AH30=4,\"Insignificante\",IF(AH30=8,\"Menor\",IF(AH30=12,\"Moderado\",IF(AH30=16,\"Mayor\",IF(AH30=20,\"Catastrófico\",IF(AH30=\"No aplica\",\"No aplica\",\" \"))))))","v":" "},{"$f":"Q30","v":0},{"$f":"R30","v":" "},{"$f":"IFERROR(AE30*AH30,\"No aplica\")","v":0},{"$f":"IF(AND(AE30=1,AH30=4),\"Aceptable\",IF(AND(AE30=2,AH30=4),\"Aceptable\",IF(AND(AE30=3,AH30=4),\"Aceptable\",IF(AND(AE30=4,AH30=4),\"Tolerable\",IF(AND(AE30=5,AH30=4),\"Importante\",IF(AND(AE30=1,AH30=8),\"Aceptable\",IF(AND(AE30=2,AH30=8),\"Aceptable\",IF(AND(AE30=3,AH30=8),\"Tolerable\",IF(AND(AE30=4,AH30=8),\"Importante\",IF(AND(AE30=5,AH30=8),\"Importante\",IF(AND(AE30=1,AH30=12),\"Tolerable\",IF(AND(AE30=2,AH30=12),\"Tolerable\",IF(AND(AE30=3,AH30=12),\"Importante\",IF(AND(AE30=4,AH30=12),\"Importante\",IF(AND(AE30=5,AH30=12),\"Inaceptable\",IF(AND(AE30=1,AH30=16),\"Importante\",IF(AND(AE30=2,AH30=16),\"Importante\",IF(AND(AE30=3,AH30=16),\"Inaceptable\",IF(AND(AE30=4,AH30=16),\"Inaceptable\",IF(AND(AE30=5,AH30=16),\"Inaceptable\",IF(AND(AE30=1,AH30=20),\"Importante\",IF(AND(AE30=2,AH30=20),\"Inaceptable\",IF(AND(AE30=3,AH30=20),\"Inaceptable\",IF(AND(AE30=4,AH30=20),\"Inaceptable\",IF(AND(AE30=5,AH30=20),\"Inaceptable\",IF(AE30=\"No aplica\",\"No aplica\",\" \"))))))))))))))))))))))))))","v":" "},{"$f":"J30&4","v":"4"},null,{"$f":"AC30","v":0},1]
[null,null,null,null,null,null,null,null,null,null,null,null,null,null,null,null,null,null,null,2,null,null,null,null,null,null,null," ",null,null,null,null,null,null,null,null,null,null,null,null,null,null,2]
[null,null,null,null,null,null,null,null,null,null,null,null,null,null,null,null,null,null,null,3,null,null,null,null,null,null,null," ",null,null,null,null,null,null,null,null,null,null,null,null,null,null,3]
[null,null,null,null,null,null,null,null,null,null,null,null,null,null,null,null,null,null,null,4,null,null,null,null,null,null,null," ",null,null,null,null,null,null,null,null,null,null,null,null,null,null,4]
[null,null,null,null,null,null,null,null,null,null,null,null,null,null,null,null,null,null,null,5,null,null,null,null,null,null,null," ",null,null,null,null,null,null,null,null,null,null,null,null,null,null,5]
[null,{"$f":"B30+1","v":6},null,null,null,null,null,null,null,null,{"$f":"G35","v":0},null,{"$f":"IF(L35=1,\"Muy baja\",IF(L35=2,\"Baja\",IF(L35=3,\"Media\",IF(L35=4,\"Alta\",IF(L35=5,\"Muy alta\",\" \")))))","v":" "},null,{"$f":"IF(N35=4,\"Insignificante\",IF(N35=8,\"Menor\",IF(N35=12,\"Moderado\",IF(N35=16,\"Mayor\",IF(N35=20,\"Catastrófico\",IF(N35=\"No aplica\",\"No aplica\",\" \"))))))","v":" "},{"$f":"J35&1","v":"1"},{"$f":"IFERROR(L35*N35,\"No aplica\")","v":0},{"$f":"IF(AND(L35=1,N35=4),\"Aceptable\",IF(AND(L35=2,N35=4),\"Aceptable\",IF(AND(L35=3,N35=4),\"Aceptable\",IF(AND(L35=4,N35=4),\"Tolerable\",IF(AND(L35=5,N35=4),\"Importante\",IF(AND(L35=1,N35=8),\"Aceptable\",IF(AND(L35=2,N35=8),\"Aceptable\",IF(AND(L35=3,N35=8),\"Tolerable\",IF(AND(L35=4,N35=8),\"Importante\",IF(AND(L35=5,N35=8),\"Importante\",IF(AND(L35=1,N35=12),\"Tolerable\",IF(AND(L35=2,N35=12),\"Tolerable\",IF(AND(L35=3,N35=12),\"Importante\",IF(AND(L35=4,N35=12),\"Importante\",IF(AND(L35=5,N35=12),\"Inaceptable\",IF(AND(L35=1,N35=16),\"Importante\",IF(AND(L35=2,N35=16),\"Importante\",IF(AND(L35=3,N35=16),\"Inaceptable\",IF(AND(L35=4,N35=16),\"Inaceptable\",IF(AND(L35=5,N35=16),\"Inaceptable\",IF(AND(L35=1,N35=20),\"Importante\",IF(AND(L35=2,N35=20),\"Inaceptable\",IF(AND(L35=3,N35=20),\"Inaceptable\",IF(AND(L35=4,N35=20),\"Inaceptable\",IF(AND(L35=5,N35=20),\"Inaceptable\",IF(Q35=\"No aplica\",\"No aplica\",\" \"))))))))))))))))))))))))))","v":" "},{"$f":"K35","v":0},1,null,null,null,null,null,null,null," ",{"$f":"S35","v":0},{"$f":"J35&2","v":"2"},null,{"$f":"IF(AE35=1,\"Muy baja\",IF(AE35=2,\"Baja\",IF(AE35=3,\"Media\",IF(AE35=4,\"Alta\",IF(AE35=5,\"Muy alta\",IF(AE35=\"No aplica\",\"No aplica\",\" \"))))))","v":" "},{"$f":"J35&3","v":"3"},null,{"$f":"IF(AH35=4,\"Insignificante\",IF(AH35=8,\"Menor\",IF(AH35=12,\"Moderado\",IF(AH35=16,\"Mayor\",IF(AH35=20,\"Catastrófico\",IF(AH35=\"No aplica\",\"No aplica\",\" \"))))))","v":" "},{"$f":"Q35","v":0},{"$f":"R35","v":" "},{"$f":"IFERROR(AE35*AH35,\"No aplica\")","v":0},{"$f":"IF(AND(AE35=1,AH35=4),\"Aceptable\",IF(AND(AE35=2,AH35=4),\"Aceptable\",IF(AND(AE35=3,AH35=4),\"Aceptable\",IF(AND(AE35=4,AH35=4),\"Tolerable\",IF(AND(AE35=5,AH35=4),\"Importante\",IF(AND(AE35=1,AH35=8),\"Aceptable\",IF(AND(AE35=2,AH35=8),\"Aceptable\",IF(AND(AE35=3,AH35=8),\"Tolerable\",IF(AND(AE35=4,AH35=8),\"Importante\",IF(AND(AE35=5,AH35=8),\"Importante\",IF(AND(AE35=1,AH35=12),\"Tolerable\",IF(AND(AE35=2,AH35=12),\"Tolerable\",IF(AND(AE35=3,AH35=12),\"Importante\",IF(AND(AE35=4,AH35=12),\"Importante\",IF(AND(AE35=5,AH35=12),\"Inaceptable\",IF(AND(AE35=1,AH35=16),\"Importante\",IF(AND(AE35=2,AH35=16),\"Importante\",IF(AND(AE35=3,AH35=16),\"Inaceptable\",IF(AND(AE35=4,AH35=16),\"Inaceptable\",IF(AND(AE35=5,AH35=16),\"Inaceptable\",IF(AND(AE35=1,AH35=20),\"Importante\",IF(AND(AE35=2,AH35=20),\"Inaceptable\",IF(AND(AE35=3,AH35=20),\"Inaceptable\",IF(AND(AE35=4,AH35=20),\"Inaceptable\",IF(AND(AE35=5,AH35=20),\"Inaceptable\",IF(AE35=\"No aplica\",\"No aplica\",\" \"))))))))))))))))))))))))))","v":" "},{"$f":"J35&4","v":"4"},null,{"$f":"AC35","v":0},1]
[null,null,null,null,null,null,null,null,null,null,null,null,null,null,null,null,null,null,null,2,null,null,null,null,null,null,null," ",null,null,null,null,null,null,null,null,null,null,null,null,null,null,2]
[null,null,null,null,null,null,null,null,null,null,null,null,null,null,null,null,null,null,null,3,null,null,null,null,null,null,null," ",null,null,null,null,null,null,null,null,null,null,null,null,null,null,3]
[null,null,null,null,null,null,null,null,null,null,null,null,null,null,null,null,null,null,null,4,null,null,null,null,null,null,null," ",null,null,null,null,null,null,null,null,null,null,null,null,null,null,4]
[null,null,null,null,null,null,null,null,null,null,null,null,null,null,null,null,null,null,null,5,null,null,null,null,null,null,null," ",null,null,null,null,null,null,null,null,null,null,null,null,null,null,5]
[null,{"$f":"B35+1","v":7},null,null,null,null,null,null,null,null,{"$f":"G40","v":0},null,{"$f":"IF(L40=1,\"Muy baja\",IF(L40=2,\"Baja\",IF(L40=3,\"Media\",IF(L40=4,\"Alta\",IF(L40=5,\"Muy alta\",\" \")))))","v":" "},null,{"$f":"IF(N40=4,\"Insignificante\",IF(N40=8,\"Menor\",IF(N40=12,\"Moderado\",IF(N40=16,\"Mayor\",IF(N40=20,\"Catastrófico\",IF(N40=\"No aplica\",\"No aplica\",\" \"))))))","v":" "},{"$f":"J40&1","v":"1"},{"$f":"IFERROR(L40*N40,\"No aplica\")","v":0},{"$f":"IF(AND(L40=1,N40=4),\"Aceptable\",IF(AND(L40=2,N40=4),\"Aceptable\",IF(AND(L40=3,N40=4),\"Aceptable\",IF(AND(L40=4,N40=4),\"Tolerable\",IF(AND(L40=5,N40=4),\"Importante\",IF(AND(L40=1,N40=8),\"Aceptable\",IF(AND(L40=2,N40=8),\"Aceptable\",IF(AND(L40=3,N40=8),\"Tolerable\",IF(AND(L40=4,N40=8),\"Importante\",IF(AND(L40=5,N40=8),\"Importante\",IF(AND(L40=1,N40=12),\"Tolerable\",IF(AND(L40=2,N40=12),\"Tolerable\",IF(AND(L40=3,N40=12),\"Importante\",IF(AND(L40=4,N40=12),\"Importante\",IF(AND(L40=5,N40=12),\"Inaceptable\",IF(AND(L40=1,N40=16),\"Importante\",IF(AND(L40=2,N40=16),\"Importante\",IF(AND(L40=3,N40=16),\"Inaceptable\",IF(AND(L40=4,N40=16),\"Inaceptable\",IF(AND(L40=5,N40=16),\"Inaceptable\",IF(AND(L40=1,N40=20),\"Importante\",IF(AND(L40=2,N40=20),\"Inaceptable\",IF(AND(L40=3,N40=20),\"Inaceptable\",IF(AND(L40=4,N40=20),\"Inaceptable\",IF(AND(L40=5,N40=20),\"Inaceptable\",IF(Q40=\"No aplica\",\"No aplica\",\" \"))))))))))))))))))))))))))","v":" "},{"$f":"K40","v":0},1,null,null,null,null,null,null,null," ",{"$f":"S40","v":0},{"$f":"J40&2","v":"2"},null,{"$f":"IF(AE40=1,\"Muy baja\",IF(AE40=2,\"Baja\",IF(AE40=3,\"Media\",IF(AE40=4,\"Alta\",IF(AE40=5,\"Muy alta\",IF(AE40=\"No aplica\",\"No aplica\",\" \"))))))","v":" "},{"$f":"J40&3","v":"3"},null,{"$f":"IF(AH40=4,\"Insignificante\",IF(AH40=8,\"Menor\",IF(AH40=12,\"Moderado\",IF(AH40=16,\"Mayor\",IF(AH40=20,\"Catastrófico\",IF(AH40=\"No aplica\",\"No aplica\",\" \"))))))","v":" "},{"$f":"Q40","v":0},{"$f":"R40","v":" "},{"$f":"IFERROR(AE40*AH40,\"No aplica\")","v":0},{"$f":"IF(AND(AE40=1,AH40=4),\"Aceptable\",IF(AND(AE40=2,AH40=4),\"Aceptable\",IF(AND(AE40=3,AH40=4),\"Aceptable\",IF(AND(AE40=4,AH40=4),\"Tolerable\",IF(AND(AE40=5,AH40=4),\"Importante\",IF(AND(AE40=1,AH40=8),\"Aceptable\",IF(AND(AE40=2,AH40=8),\"Aceptable\",IF(AND(AE40=3,AH40=8),\"Tolerable\",IF(AND(AE40=4,AH40=8),\"Importante\",IF(AND(AE40=5,AH40=8),\"Importante\",IF(AND(AE40=1,AH40=12),\"Tolerable\",IF(AND(AE40=2,AH40=12),\"Tolerable\",IF(AND(AE40=3,AH40=12),\"Importante\",IF(AND(AE40=4,AH40=12),\"Importante\",IF(AND(AE40=5,AH40=12),\"Inaceptable\",IF(AND(AE40=1,AH40=16),\"Importante\",IF(AND(AE40=2,AH40=16),\"Importante\",IF(AND(AE40=3,AH40=16),\"Inaceptable\",IF(AND(AE40=4,AH40=16),\"Inaceptable\",IF(AND(AE40=5,AH40=16),\"Inaceptable\",IF(AND(AE40=1,AH40=20),\"Importante\",IF(AND(AE40=2,AH40=20),\"Inaceptable\",IF(AND(AE40=3,AH40=20),\"Inaceptable\",IF(AND(AE40=4,AH40=20),\"Inaceptable\",IF(AND(AE40=5,AH40=20),\"Inaceptable\",IF(AE40=\"No aplica\",\"No aplica\",\" \"))))))))))))))))))))))))))","v":" "},{"$f":"J40&4","v":"4"},null,{"$f":"AC40","v":0},1]
[null,null,null,null,null,null,null,null,null,null,null,null,null,null,null,null,null,null,null,2,null,null,null,null,null,null,null," ",null,null,null,null,null,null,null,null,null,null,null,null,null,null,2]
[null,null,null,null,null,null,null,null,null,null,null,null,null,null,null,null,null,null,null,3,null,null,null,null,null,null,null," ",null,null,null,null,null,null,null,null,null,null,null,null,null,null,3]
[null,null,null,null,null,null,null,null,null,null,null,null,null,null,null,null,null,null,null,4,null,null,null,null,null,null,null," ",null,null,null,null,null,null,null,null,null,null,null,null,null,null,4]
[null,null,null,null,null,null,null,null,null,null,null,null,null,null,null,null,null,null,null,5,null,null,null,null,null,null,null," ",null,null,null,null,null,null,null,null,null,null,null,null,null,null,5]
[null,{"$f":"B40+1","v":8},null,null,null,null,null,null,null,null,{"$f":"G45","v":0},null,{"$f":"IF(L45=1,\"Muy baja\",IF(L45=2,\"Baja\",IF(L45=3,\"Media\",IF(L45=4,\"Alta\",IF(L45=5,\"Muy alta\",\" \")))))","v":" "},null,{"$f":"IF(N45=4,\"Insignificante\",IF(N45=8,\"Menor\",IF(N45=12,\"Moderado\",IF(N45=16,\"Mayor\",IF(N45=20,\"Catastrófico\",IF(N45=\"No aplica\",\"No aplica\",\" \"))))))","v":" "},{"$f":"J45&1","v":"1"},{"$f":"IFERROR(L45*N45,\"No aplica\")","v":0},{"$f":"IF(AND(L45=1,N45=4),\"Aceptable\",IF(AND(L45=2,N45=4),\"Aceptable\",IF(AND(L45=3,N45=4),\"Aceptable\",IF(AND(L45=4,N45=4),\"Tolerable\",IF(AND(L45=5,N45=4),\"Importante\",IF(AND(L45=1,N45=8),\"Aceptable\",IF(AND(L45=2,N45=8),\"Aceptable\",IF(AND(L45=3,N45=8),\"Tolerable\",IF(AND(L45=4,N45=8),\"Importante\",IF(AND(L45=5,N45=8),\"Importante\",IF(AND(L45=1,N45=12),\"Tolerable\",IF(AND(L45=2,N45=12),\"Tolerable\",IF(AND(L45=3,N45=12),\"Importante\",IF(AND(L45=4,N45=12),\"Importante\",IF(AND(L45=5,N45=12),\"Inaceptable\",IF(AND(L45=1,N45=16),\"Importante\",IF(AND(L45=2,N45=16),\"Importante\",IF(AND(L45=3,N45=16),\"Inaceptable\",IF(AND(L45=4,N45=16),\"Inaceptable\",IF(AND(L45=5,N45=16),\"Inaceptable\",IF(AND(L45=1,N45=20),\"Importante\",IF(AND(L45=2,N45=20),\"Inaceptable\",IF(AND(L45=3,N45=20),\"Inaceptable\",IF(AND(L45=4,N45=20),\"Inaceptable\",IF(AND(L45=5,N45=20),\"Inaceptable\",IF(Q45=\"No aplica\",\"No aplica\",\" \"))))))))))))))))))))))))))","v":" "},{"$f":"K45","v":0},1,null,null,null,null,null,null,null," ",{"$f":"S45","v":0},{"$f":"J45&2","v":"2"},null,{"$f":"IF(AE45=1,\"Muy baja\",IF(AE45=2,\"Baja\",IF(AE45=3,\"Media\",IF(AE45=4,\"Alta\",IF(AE45=5,\"Muy alta\",IF(AE45=\"No aplica\",\"No aplica\",\" \"))))))","v":" "},{"$f":"J45&3","v":"3"},null,{"$f":"IF(AH45=4,\"Insignificante\",IF(AH45=8,\"Menor\",IF(AH45=12,\"Moderado\",IF(AH45=16,\"Mayor\",IF(AH45=20,\"Catastrófico\",IF(AH45=\"No aplica\",\"No aplica\",\" \"))))))","v":" "},{"$f":"Q45","v":0},{"$f":"R45","v":" "},{"$f":"IFERROR(AE45*AH45,\"No aplica\")","v":0},{"$f":"IF(AND(AE45=1,AH45=4),\"Aceptable\",IF(AND(AE45=2,AH45=4),\"Aceptable\",IF(AND(AE45=3,AH45=4),\"Aceptable\",IF(AND(AE45=4,AH45=4),\"Tolerable\",IF(AND(AE45=5,AH45=4),\"Importante\",IF(AND(AE45=1,AH45=8),\"Aceptable\",IF(AND(AE45=2,AH45=8),\"Aceptable\",IF(AND(AE45=3,AH45=8),\"Tolerable\",IF(AND(AE45=4,AH45=8),\"Importante\",IF(AND(AE45=5,AH45=8),\"Importante\",IF(AND(AE45=1,AH45=12),\"Tolerable\",IF(AND(AE45=2,AH45=12),\"Tolerable\",IF(AND(AE45=3,AH45=12),\"Importante\",IF(AND(AE45=4,AH45=12),\"Importante\",IF(AND(AE45=5,AH45=12),\"Inaceptable\",IF(AND(AE45=1,AH45=16),\"Importante\",IF(AND(AE45=2,AH45=16),\"Importante\",IF(AND(AE45=3,AH45=16),\"Inaceptable\",IF(AND(AE45=4,AH45=16),\"Inaceptable\",IF(AND(AE45=5,AH45=16),\"Inaceptable\",IF(AND(AE45=1,AH45=20),\"Importante\",IF(AND(AE45=2,AH45=20),\"Inaceptable\",IF(AND(AE45=3,AH45=20),\"Inaceptable\",IF(AND(AE45=4,AH45=20),\"Inaceptable\",IF(AND(AE45=5,AH45=20),\"Inaceptable\",IF(AE45=\"No aplica\",\"No aplica\",\" \"))))))))))))))))))))))))))","v":" "},{"$f":"J45&4","v":"4"},null,{"$f":"AC45","v":0},1]
[null,null,null,null,null,null,null,null,null,null,null,null,null,null,null,null,null,null,null,2,null,null,null,null,null,null,null," ",null,null,null,null,null,null,null,null,null,null,null,null,null,null,2]
[null,null,null,null,null,null,null,null,null,null,null,null,null,null,null,null,null,null,null,3,null,null,null,null,null,null,null," ",null,null,null,null,null,null,null,null,null,null,null,null,null,null,3]
[null,null,null,null,null,null,null,null,null,null,null,null,null,null,null,null,null,null,null,4,null,null,null,null,null,null,null," ",null,null,null,null,null,null,null,null,null,null,null,null,null,null,4]
[null,null,null,null,null,null,null,null,null,null,null,null,null,null,null,null,null,null,null,5,null,null,null,null,null,null,null," ",null,null,null,null,null,null,null,null,null,null,null,null,null,null,5]
[null,{"$f":"B45+1","v":9},null,null,1,null,null,1,null,null,{"$f":"G50","v":0},null,{"$f":"IF(L50=1,\"Muy baja\",IF(L50=2,\"Baja\",IF(L50=3,\"Media\",IF(L50=4,\"Alta\",IF(L50=5,\"Muy alta\",\" \")))))","v":" "},null,{"$f":"IF(N50=4,\"Insignificante\",IF(N50=8,\"Menor\",IF(N50=12,\"Moderado\",IF(N50=16,\"Mayor\",IF(N50=20,\"Catastrófico\",IF(N50=\"No aplica\",\"No aplica\",\" \"))))))","v":" "},{"$f":"J50&1","v":"1"},{"$f":"IFERROR(L50*N50,\"No aplica\")","v":0},{"$f":"IF(AND(L50=1,N50=4),\"Aceptable\",IF(AND(L50=2,N50=4),\"Aceptable\",IF(AND(L50=3,N50=4),\"Aceptable\",IF(AND(L50=4,N50=4),\"Tolerable\",IF(AND(L50=5,N50=4),\"Importante\",IF(AND(L50=1,N50=8),\"Aceptable\",IF(AND(L50=2,N50=8),\"Aceptable\",IF(AND(L50=3,N50=8),\"Tolerable\",IF(AND(L50=4,N50=8),\"Importante\",IF(AND(L50=5,N50=8),\"Importante\",IF(AND(L50=1,N50=12),\"Tolerable\",IF(AND(L50=2,N50=12),\"Tolerable\",IF(AND(L50=3,N50=12),\"Importante\",IF(AND(L50=4,N50=12),\"Importante\",IF(AND(L50=5,N50=12),\"Inaceptable\",IF(AND(L50=1,N50=16),\"Importante\",IF(AND(L50=2,N50=16),\"Importante\",IF(AND(L50=3,N50=16),\"Inaceptable\",IF(AND(L50=4,N50=16),\"Inaceptable\",IF(AND(L50=5,N50=16),\"Inaceptable\",IF(AND(L50=1,N50=20),\"Importante\",IF(AND(L50=2,N50=20),\"Inaceptable\",IF(AND(L50=3,N50=20),\"Inaceptable\",IF(AND(L50=4,N50=20),\"Inaceptable\",IF(AND(L50=5,N50=20),\"Inaceptable\",IF(Q50=\"No aplica\",\"No aplica\",\" \"))))))))))))))))))))))))))","v":" "},{"$f":"K50","v":0},1,null,null,null,null,null,null,null," ",{"$f":"S50","v":0},{"$f":"J50&2","v":"2"},null,{"$f":"IF(AE50=1,\"Muy baja\",IF(AE50=2,\"Baja\",IF(AE50=3,\"Media\",IF(AE50=4,\"Alta\",IF(AE50=5,\"Muy alta\",IF(AE50=\"No aplica\",\"No aplica\",\" \"))))))","v":" "},{"$f":"J50&3","v":"3"},null,{"$f":"IF(AH50=4,\"Insignificante\",IF(AH50=8,\"Menor\",IF(AH50=12,\"Moderado\",IF(AH50=16,\"Mayor\",IF(AH50=20,\"Catastrófico\",IF(AH50=\"No aplica\",\"No aplica\",\" \"))))))","v":" "},{"$f":"Q50","v":0},{"$f":"R50","v":" "},{"$f":"IFERROR(AE50*AH50,\"No aplica\")","v":0},{"$f":"IF(AND(AE50=1,AH50=4),\"Aceptable\",IF(AND(AE50=2,AH50=4),\"Aceptable\",IF(AND(AE50=3,AH50=4),\"Aceptable\",IF(AND(AE50=4,AH50=4),\"Tolerable\",IF(AND(AE50=5,AH50=4),\"Importante\",IF(AND(AE50=1,AH50=8),\"Aceptable\",IF(AND(AE50=2,AH50=8),\"Aceptable\",IF(AND(AE50=3,AH50=8),\"Tolerable\",IF(AND(AE50=4,AH50=8),\"Importante\",IF(AND(AE50=5,AH50=8),\"Importante\",IF(AND(AE50=1,AH50=12),\"Tolerable\",IF(AND(AE50=2,AH50=12),\"Tolerable\",IF(AND(AE50=3,AH50=12),\"Importante\",IF(AND(AE50=4,AH50=12),\"Importante\",IF(AND(AE50=5,AH50=12),\"Inaceptable\",IF(AND(AE50=1,AH50=16),\"Importante\",IF(AND(AE50=2,AH50=16),\"Importante\",IF(AND(AE50=3,AH50=16),\"Inaceptable\",IF(AND(AE50=4,AH50=16),\"Inaceptable\",IF(AND(AE50=5,AH50=16),\"Inaceptable\",IF(AND(AE50=1,AH50=20),\"Importante\",IF(AND(AE50=2,AH50=20),\"Inaceptable\",IF(AND(AE50=3,AH50=20),\"Inaceptable\",IF(AND(AE50=4,AH50=20),\"Inaceptable\",IF(AND(AE50=5,AH50=20),\"Inaceptable\",IF(AE50=\"No aplica\",\"No aplica\",\" \"))))))))))))))))))))))))))","v":" "},{"$f":"J50&4","v":"4"},null,{"$f":"AC50","v":0},1]
[null,null,null,null,2,null,null,2,null,null,null,null,null,null,null,null,null,null,null,2,null,null,null,null,null,null,null," ",null,null,null,null,null,null,null,null,null,null,null,null,null,null,2]
[null,null,null,null,3,null,null,3,null,null,null,null,null,null,null,null,null,null,null,3,null,null,null,null,null,null,null," ",null,null,null,null,null,null,null,null,null,null,null,null,null,null,3]
[null,null,null,null,4,null,null,4,null,null,null,null,null,null,null,null,null,null,null,4,null,null,null,null,null,null,null," ",null,null,null,null,null,null,null,null,null,null,null,null,null,null,4]
[null,null,null,null,5,null,null,5,null,null,null,null,null,null,null,null,null,null,null,5,null,null,null,null,null,null,null," ",null,null,null,null,null,null,null,null,null,null,null,null,null,null,5]
[null,{"$f":"B50+1","v":10},null,null,1,null,null,1,null,null,{"$f":"G55","v":0},null,{"$f":"IF(L55=1,\"Muy baja\",IF(L55=2,\"Baja\",IF(L55=3,\"Media\",IF(L55=4,\"Alta\",IF(L55=5,\"Muy alta\",\" \")))))","v":" "},null,{"$f":"IF(N55=4,\"Insignificante\",IF(N55=8,\"Menor\",IF(N55=12,\"Moderado\",IF(N55=16,\"Mayor\",IF(N55=20,\"Catastrófico\",IF(N55=\"No aplica\",\"No aplica\",\" \"))))))","v":" "},{"$f":"J55&1","v":"1"},{"$f":"IFERROR(L55*N55,\"No aplica\")","v":0},{"$f":"IF(AND(L55=1,N55=4),\"Aceptable\",IF(AND(L55=2,N55=4),\"Aceptable\",IF(AND(L55=3,N55=4),\"Aceptable\",IF(AND(L55=4,N55=4),\"Tolerable\",IF(AND(L55=5,N55=4),\"Importante\",IF(AND(L55=1,N55=8),\"Aceptable\",IF(AND(L55=2,N55=8),\"Aceptable\",IF(AND(L55=3,N55=8),\"Tolerable\",IF(AND(L55=4,N55=8),\"Importante\",IF(AND(L55=5,N55=8),\"Importante\",IF(AND(L55=1,N55=12),\"Tolerable\",IF(AND(L55=2,N55=12),\"Tolerable\",IF(AND(L55=3,N55=12),\"Importante\",IF(AND(L55=4,N55=12),\"Importante\",IF(AND(L55=5,N55=12),\"Inaceptable\",IF(AND(L55=1,N55=16),\"Importante\",IF(AND(L55=2,N55=16),\"Importante\",IF(AND(L55=3,N55=16),\"Inaceptable\",IF(AND(L55=4,N55=16),\"Inaceptable\",IF(AND(L55=5,N55=16),\"Inaceptable\",IF(AND(L55=1,N55=20),\"Importante\",IF(AND(L55=2,N55=20),\"Inaceptable\",IF(AND(L55=3,N55=20),\"Inaceptable\",IF(AND(L55=4,N55=20),\"Inaceptable\",IF(AND(L55=5,N55=20),\"Inaceptable\",IF(Q55=\"No aplica\",\"No aplica\",\" \"))))))))))))))))))))))))))","v":" "},{"$f":"K55","v":0},1,null,null,null,null,null,null,null," ",{"$f":"S55","v":0},{"$f":"J55&2","v":"2"},null,{"$f":"IF(AE55=1,\"Muy baja\",IF(AE55=2,\"Baja\",IF(AE55=3,\"Media\",IF(AE55=4,\"Alta\",IF(AE55=5,\"Muy alta\",IF(AE55=\"No aplica\",\"No aplica\",\" \"))))))","v":" "},{"$f":"J55&3","v":"3"},null,{"$f":"IF(AH55=4,\"Insignificante\",IF(AH55=8,\"Menor\",IF(AH55=12,\"Moderado\",IF(AH55=16,\"Mayor\",IF(AH55=20,\"Catastrófico\",IF(AH55=\"No aplica\",\"No aplica\",\" \"))))))","v":" "},{"$f":"Q55","v":0},{"$f":"R55","v":" "},{"$f":"IFERROR(AE55*AH55,\"No aplica\")","v":0},{"$f":"IF(AND(AE55=1,AH55=4),\"Aceptable\",IF(AND(AE55=2,AH55=4),\"Aceptable\",IF(AND(AE55=3,AH55=4),\"Aceptable\",IF(AND(AE55=4,AH55=4),\"Tolerable\",IF(AND(AE55=5,AH55=4),\"Importante\",IF(AND(AE55=1,AH55=8),\"Aceptable\",IF(AND(AE55=2,AH55=8),\"Aceptable\",IF(AND(AE55=3,AH55=8),\"Tolerable\",IF(AND(AE55=4,AH55=8),\"Importante\",IF(AND(AE55=5,AH55=8),\"Importante\",IF(AND(AE55=1,AH55=12),\"Tolerable\",IF(AND(AE55=2,AH55=12),\"Tolerable\",IF(AND(AE55=3,AH55=12),\"Importante\",IF(AND(AE55=4,AH55=12),\"Importante\",IF(AND(AE55=5,AH55=12),\"Inaceptable\",IF(AND(AE55=1,AH55=16),\"Importante\",IF(AND(AE55=2,AH55=16),\"Importante\",IF(AND(AE55=3,AH55=16),\"Inaceptable\",IF(AND(AE55=4,AH55=16),\"Inaceptable\",IF(AND(AE55=5,AH55=16),\"Inaceptable\",IF(AND(AE55=1,AH55=20),\"Importante\",IF(AND(AE55=2,AH55=20),\"Inaceptable\",IF(AND(AE55=3,AH55=20),\"Inaceptable\",IF(AND(AE55=4,AH55=20),\"Inaceptable\",IF(AND(AE55=5,AH55=20),\"Inaceptable\",IF(AE55=\"No aplica\",\"No aplica\",\" \"))))))))))))))))))))))))))","v":" "},{"$f":"J55&4","v":"4"},null,{"$f":"AC55","v":0},1]
[null,null,null,null,2,null,null,2,null,null,null,null,null,null,null,null,null,null,null,2,null,null,null,null,null,null,null," ",null,null,null,null,null,null,null,null,null,null,null,null,null,null,2]
[null,null,null,null,3,null,null,3,null,null,null,null,null,null,null,null,null,null,null,3,null,null,null,null,null,null,null," ",null,null,null,null,null,null,null,null,null,null,null,null,null,null,3]
[null,null,null,null,4,null,null,4,null,null,null,null,null,null,null,null,null,null,null,4,null,null,null,null,null,null,null," ",null,null,null,null,null,null,null,null,null,null,null,null,null,null,4]
[null,null,null,null,5,null,null,5,null,null,null,null,null,null,null,null,null,null,null,5,null,null,null,null,null,null,null," ",null,null,null,null,null,null,null,null,null,null,null,null,null,null,5]
[null,{"$f":"B55+1","v":11},null,null,1,null,null,1,null,null,{"$f":"G60","v":0},null,{"$f":"IF(L60=1,\"Muy baja\",IF(L60=2,\"Baja\",IF(L60=3,\"Media\",IF(L60=4,\"Alta\",IF(L60=5,\"Muy alta\",\" \")))))","v":" "},null,{"$f":"IF(N60=4,\"Insignificante\",IF(N60=8,\"Menor\",IF(N60=12,\"Moderado\",IF(N60=16,\"Mayor\",IF(N60=20,\"Catastrófico\",IF(N60=\"No aplica\",\"No aplica\",\" \"))))))","v":" "},{"$f":"J60&1","v":"1"},{"$f":"IFERROR(L60*N60,\"No aplica\")","v":0},{"$f":"IF(AND(L60=1,N60=4),\"Aceptable\",IF(AND(L60=2,N60=4),\"Aceptable\",IF(AND(L60=3,N60=4),\"Aceptable\",IF(AND(L60=4,N60=4),\"Tolerable\",IF(AND(L60=5,N60=4),\"Importante\",IF(AND(L60=1,N60=8),\"Aceptable\",IF(AND(L60=2,N60=8),\"Aceptable\",IF(AND(L60=3,N60=8),\"Tolerable\",IF(AND(L60=4,N60=8),\"Importante\",IF(AND(L60=5,N60=8),\"Importante\",IF(AND(L60=1,N60=12),\"Tolerable\",IF(AND(L60=2,N60=12),\"Tolerable\",IF(AND(L60=3,N60=12),\"Importante\",IF(AND(L60=4,N60=12),\"Importante\",IF(AND(L60=5,N60=12),\"Inaceptable\",IF(AND(L60=1,N60=16),\"Importante\",IF(AND(L60=2,N60=16),\"Importante\",IF(AND(L60=3,N60=16),\"Inaceptable\",IF(AND(L60=4,N60=16),\"Inaceptable\",IF(AND(L60=5,N60=16),\"Inaceptable\",IF(AND(L60=1,N60=20),\"Importante\",IF(AND(L60=2,N60=20),\"Inaceptable\",IF(AND(L60=3,N60=20),\"Inaceptable\",IF(AND(L60=4,N60=20),\"Inaceptable\",IF(AND(L60=5,N60=20),\"Inaceptable\",IF(Q60=\"No aplica\",\"No aplica\",\" \"))))))))))))))))))))))))))","v":" "},{"$f":"K60","v":0},1,null,null,null,null,null,null,null," ",{"$f":"S60","v":0},{"$f":"J60&2","v":"2"},null,{"$f":"IF(AE60=1,\"Muy baja\",IF(AE60=2,\"Baja\",IF(AE60=3,\"Media\",IF(AE60=4,\"Alta\",IF(AE60=5,\"Muy alta\",IF(AE60=\"No aplica\",\"No aplica\",\" \"))))))","v":" "},{"$f":"J60&3","v":"3"},null,{"$f":"IF(AH60=4,\"Insignificante\",IF(AH60=8,\"Menor\",IF(AH60=12,\"Moderado\",IF(AH60=16,\"Mayor\",IF(AH60=20,\"Catastrófico\",IF(AH60=\"No aplica\",\"No aplica\",\" \"))))))","v":" "},{"$f":"Q60","v":0},{"$f":"R60","v":" "},{"$f":"IFERROR(AE60*AH60,\"No aplica\")","v":0},{"$f":"IF(AND(AE60=1,AH60=4),\"Aceptable\",IF(AND(AE60=2,AH60=4),\"Aceptable\",IF(AND(AE60=3,AH60=4),\"Aceptable\",IF(AND(AE60=4,AH60=4),\"Tolerable\",IF(AND(AE60=5,AH60=4),\"Importante\",IF(AND(AE60=1,AH60=8),\"Aceptable\",IF(AND(AE60=2,AH60=8),\"Aceptable\",IF(AND(AE60=3,AH60=8),\"Tolerable\",IF(AND(AE60=4,AH60=8),\"Importante\",IF(AND(AE60=5,AH60=8),\"Importante\",IF(AND(AE60=1,AH60=12),\"Tolerable\",IF(AND(AE60=2,AH60=12),\"Tolerable\",IF(AND(AE60=3,AH60=12),\"Importante\",IF(AND(AE60=4,AH60=12),\"Importante\",IF(AND(AE60=5,AH60=12),\"Inaceptable\",IF(AND(AE60=1,AH60=16),\"Importante\",IF(AND(AE60=2,AH60=16),\"Importante\",IF(AND(AE60=3,AH60=16),\"Inaceptable\",IF(AND(AE60=4,AH60=16),\"Inaceptable\",IF(AND(AE60=5,AH60=16),\"Inaceptable\",IF(AND(AE60=1,AH60=20),\"Importante\",IF(AND(AE60=2,AH60=20),\"Inaceptable\",IF(AND(AE60=3,AH60=20),\"Inaceptable\",IF(AND(AE60=4,AH60=20),\"Inaceptable\",IF(AND(AE60=5,AH60=20),\"Inaceptable\",IF(AE60=\"No aplica\",\"No aplica\",\" \"))))))))))))))))))))))))))","v":" "},{"$f":"J60&4","v":"4"},null,{"$f":"AC60","v":0},1]
[null,null,null,null,2,null,null,2,null,null,null,null,null,null,null,null,null,null,null,2,null,null,null,null,null,null,null," ",null,null,null,null,null,null,null,null,null,null,null,null,null,null,2]
[null,null,null,null,3,null,null,3,null,null,null,null,null,null,null,null,null,null,null,3,null,null,null,null,null,null,null," ",null,null,null,null,null,null,null,null,null,null,null,null,null,null,3]
[null,null,null,null,4,null,null,4,null,null,null,null,null,null,null,null,null,null,null,4,null,null,null,null,null,null,null," ",null,null,null,null,null,null,null,null,null,null,null,null,null,null,4]
[null,null,null,null,5,null,null,5,null,null,null,null,null,null,null,null,null,null,null,5,null,null,null,null,null,null,null," ",null,null,null,null,null,null,null,null,null,null,null,null,null,null,5]
[null,{"$f":"B60+1","v":12},null,null,1,null,null,1,null,null,{"$f":"G65","v":0},null,{"$f":"IF(L65=1,\"Muy baja\",IF(L65=2,\"Baja\",IF(L65=3,\"Media\",IF(L65=4,\"Alta\",IF(L65=5,\"Muy alta\",\" \")))))","v":" "},null,{"$f":"IF(N65=4,\"Insignificante\",IF(N65=8,\"Menor\",IF(N65=12,\"Moderado\",IF(N65=16,\"Mayor\",IF(N65=20,\"Catastrófico\",IF(N65=\"No aplica\",\"No aplica\",\" \"))))))","v":" "},{"$f":"J65&1","v":"1"},{"$f":"IFERROR(L65*N65,\"No aplica\")","v":0},{"$f":"IF(AND(L65=1,N65=4),\"Aceptable\",IF(AND(L65=2,N65=4),\"Aceptable\",IF(AND(L65=3,N65=4),\"Aceptable\",IF(AND(L65=4,N65=4),\"Tolerable\",IF(AND(L65=5,N65=4),\"Importante\",IF(AND(L65=1,N65=8),\"Aceptable\",IF(AND(L65=2,N65=8),\"Aceptable\",IF(AND(L65=3,N65=8),\"Tolerable\",IF(AND(L65=4,N65=8),\"Importante\",IF(AND(L65=5,N65=8),\"Importante\",IF(AND(L65=1,N65=12),\"Tolerable\",IF(AND(L65=2,N65=12),\"Tolerable\",IF(AND(L65=3,N65=12),\"Importante\",IF(AND(L65=4,N65=12),\"Importante\",IF(AND(L65=5,N65=12),\"Inaceptable\",IF(AND(L65=1,N65=16),\"Importante\",IF(AND(L65=2,N65=16),\"Importante\",IF(AND(L65=3,N65=16),\"Inaceptable\",IF(AND(L65=4,N65=16),\"Inaceptable\",IF(AND(L65=5,N65=16),\"Inaceptable\",IF(AND(L65=1,N65=20),\"Importante\",IF(AND(L65=2,N65=20),\"Inaceptable\",IF(AND(L65=3,N65=20),\"Inaceptable\",IF(AND(L65=4,N65=20),\"Inaceptable\",IF(AND(L65=5,N65=20),\"Inaceptable\",IF(Q65=\"No aplica\",\"No aplica\",\" \"))))))))))))))))))))))))))","v":" "},{"$f":"K65","v":0},1,null,null,null,null,null,null,null," ",{"$f":"S65","v":0},{"$f":"J65&2","v":"2"},null,{"$f":"IF(AE65=1,\"Muy baja\",IF(AE65=2,\"Baja\",IF(AE65=3,\"Media\",IF(AE65=4,\"Alta\",IF(AE65=5,\"Muy alta\",IF(AE65=\"No aplica\",\"No aplica\",\" \"))))))","v":" "},{"$f":"J65&3","v":"3"},null,{"$f":"IF(AH65=4,\"Insignificante\",IF(AH65=8,\"Menor\",IF(AH65=12,\"Moderado\",IF(AH65=16,\"Mayor\",IF(AH65=20,\"Catastrófico\",IF(AH65=\"No aplica\",\"No aplica\",\" \"))))))","v":" "},{"$f":"Q65","v":0},{"$f":"R65","v":" "},{"$f":"IFERROR(AE65*AH65,\"No aplica\")","v":0},{"$f":"IF(AND(AE65=1,AH65=4),\"Aceptable\",IF(AND(AE65=2,AH65=4),\"Aceptable\",IF(AND(AE65=3,AH65=4),\"Aceptable\",IF(AND(AE65=4,AH65=4),\"Tolerable\",IF(AND(AE65=5,AH65=4),\"Importante\",IF(AND(AE65=1,AH65=8),\"Aceptable\",IF(AND(AE65=2,AH65=8),\"Aceptable\",IF(AND(AE65=3,AH65=8),\"Tolerable\",IF(AND(AE65=4,AH65=8),\"Importante\",IF(AND(AE65=5,AH65=8),\"Importante\",IF(AND(AE65=1,AH65=12),\"Tolerable\",IF(AND(AE65=2,AH65=12),\"Tolerable\",IF(AND(AE65=3,AH65=12),\"Importante\",IF(AND(AE65=4,AH65=12),\"Importante\",IF(AND(AE65=5,AH65=12),\"Inaceptable\",IF(AND(AE65=1,AH65=16),\"Importante\",IF(AND(AE65=2,AH65=16),\"Importante\",IF(AND(AE65=3,AH65=16),\"Inaceptable\",IF(AND(AE65=4,AH65=16),\"Inaceptable\",IF(AND(AE65=5,AH65=16),\"Inaceptable\",IF(AND(AE65=1,AH65=20),\"Importante\",IF(AND(AE65=2,AH65=20),\"Inaceptable\",IF(AND(AE65=3,AH65=20),\"Inaceptable\",IF(AND(AE65=4,AH65=20),\"Inaceptable\",IF(AND(AE65=5,AH65=20),\"Inaceptable\",IF(AE65=\"No aplica\",\"No aplica\",\" \"))))))))))))))))))))))))))","v":" "},{"$f":"J65&4","v":"4"},null,{"$f":"AC65","v":0},1]
[null,null,null,null,2,null,null,2,null,null,null,null,null,null,null,null,null,null,null,2,null,null,null,null,null,null,null," ",null,null,null,null,null,null,null,null,null,null,null,null,null,null,2]
[null,null,null,null,3,null,null,3,null,null,null,null,null,null,null,null,null,null,null,3,null,null,null,null,null,null,null," ",null,null,null,null,null,null,null,null,null,null,null,null,null,null,3]
[null,null,null,null,4,null,null,4,null,null,null,null,null,null,null,null,null,null,null,4,null,null,null,null,null,null,null," ",null,null,null,null,null,null,null,null,null,null,null,null,null,null,4]
[null,null,null,null,5,null,null,5,null,null,null,null,null,null,null,null,null,null,null,5,null,null,null,null,null,null,null," ",null,null,null,null,null,null,null,null,null,null,null,null,null,null,5]
[null,{"$f":"B65+1","v":13},null,null,1,null,null,1,null,null,{"$f":"G70","v":0},null,{"$f":"IF(L70=1,\"Muy baja\",IF(L70=2,\"Baja\",IF(L70=3,\"Media\",IF(L70=4,\"Alta\",IF(L70=5,\"Muy alta\",\" \")))))","v":" "},null,{"$f":"IF(N70=4,\"Insignificante\",IF(N70=8,\"Menor\",IF(N70=12,\"Moderado\",IF(N70=16,\"Mayor\",IF(N70=20,\"Catastrófico\",IF(N70=\"No aplica\",\"No aplica\",\" \"))))))","v":" "},{"$f":"J70&1","v":"1"},{"$f":"IFERROR(L70*N70,\"No aplica\")","v":0},{"$f":"IF(AND(L70=1,N70=4),\"Aceptable\",IF(AND(L70=2,N70=4),\"Aceptable\",IF(AND(L70=3,N70=4),\"Aceptable\",IF(AND(L70=4,N70=4),\"Tolerable\",IF(AND(L70=5,N70=4),\"Importante\",IF(AND(L70=1,N70=8),\"Aceptable\",IF(AND(L70=2,N70=8),\"Aceptable\",IF(AND(L70=3,N70=8),\"Tolerable\",IF(AND(L70=4,N70=8),\"Importante\",IF(AND(L70=5,N70=8),\"Importante\",IF(AND(L70=1,N70=12),\"Tolerable\",IF(AND(L70=2,N70=12),\"Tolerable\",IF(AND(L70=3,N70=12),\"Importante\",IF(AND(L70=4,N70=12),\"Importante\",IF(AND(L70=5,N70=12),\"Inaceptable\",IF(AND(L70=1,N70=16),\"Importante\",IF(AND(L70=2,N70=16),\"Importante\",IF(AND(L70=3,N70=16),\"Inaceptable\",IF(AND(L70=4,N70=16),\"Inaceptable\",IF(AND(L70=5,N70=16),\"Inaceptable\",IF(AND(L70=1,N70=20),\"Importante\",IF(AND(L70=2,N70=20),\"Inaceptable\",IF(AND(L70=3,N70=20),\"Inaceptable\",IF(AND(L70=4,N70=20),\"Inaceptable\",IF(AND(L70=5,N70=20),\"Inaceptable\",IF(Q70=\"No aplica\",\"No aplica\",\" \"))))))))))))))))))))))))))","v":" "},{"$f":"K70","v":0},1,null,null,null,null,null,null,null," ",{"$f":"S70","v":0},{"$f":"J70&2","v":"2"},null,{"$f":"IF(AE70=1,\"Muy baja\",IF(AE70=2,\"Baja\",IF(AE70=3,\"Media\",IF(AE70=4,\"Alta\",IF(AE70=5,\"Muy alta\",IF(AE70=\"No aplica\",\"No aplica\",\" \"))))))","v":" "},{"$f":"J70&3","v":"3"},null,{"$f":"IF(AH70=4,\"Insignificante\",IF(AH70=8,\"Menor\",IF(AH70=12,\"Moderado\",IF(AH70=16,\"Mayor\",IF(AH70=20,\"Catastrófico\",IF(AH70=\"No aplica\",\"No aplica\",\" \"))))))","v":" "},{"$f":"Q70","v":0},{"$f":"R70","v":" "},{"$f":"IFERROR(AE70*AH70,\"No aplica\")","v":0},{"$f":"IF(AND(AE70=1,AH70=4),\"Aceptable\",IF(AND(AE70=2,AH70=4),\"Aceptable\",IF(AND(AE70=3,AH70=4),\"Aceptable\",IF(AND(AE70=4,AH70=4),\"Tolerable\",IF(AND(AE70=5,AH70=4),\"Importante\",IF(AND(AE70=1,AH70=8),\"Aceptable\",IF(AND(AE70=2,AH70=8),\"Aceptable\",IF(AND(AE70=3,AH70=8),\"Tolerable\",IF(AND(AE70=4,AH70=8),\"Importante\",IF(AND(AE70=5,AH70=8),\"Importante\",IF(AND(AE70=1,AH70=12),\"Tolerable\",IF(AND(AE70=2,AH70=12),\"Tolerable\",IF(AND(AE70=3,AH70=12),\"Importante\",IF(AND(AE70=4,AH70=12),\"Importante\",IF(AND(AE70=5,AH70=12),\"Inaceptable\",IF(AND(AE70=1,AH70=16),\"Importante\",IF(AND(AE70=2,AH70=16),\"Importante\",IF(AND(AE70=3,AH70=16),\"Inaceptable\",IF(AND(AE70=4,AH70=16),\"Inaceptable\",IF(AND(AE70=5,AH70=16),\"Inaceptable\",IF(AND(AE70=1,AH70=20),\"Importante\",IF(AND(AE70=2,AH70=20),\"Inaceptable\",IF(AND(AE70=3,AH70=20),\"Inaceptable\",IF(AND(AE70=4,AH70=20),\"Inaceptable\",IF(AND(AE70=5,AH70=20),\"Inaceptable\",IF(AE70=\"No aplica\",\"No aplica\",\" \"))))))))))))))))))))))))))","v":" "},{"$f":"J70&4","v":"4"},null,{"$f":"AC70","v":0},1]
[null,null,null,null,2,null,null,2,null,null,null,null,null,null,null,null,null,null,null,2,null,null,null,null,null,null,null," ",null,null,null,null,null,null,null,null,null,null,null,null,null,null,2]
[null,null,null,null,3,null,null,3,null,null,null,null,null,null,null,null,null,null,null,3,null,null,null,null,null,null,null," ",null,null,null,null,null,null,null,null,null,null,null,null,null,null,3]
[null,null,null,null,4,null,null,4,null,null,null,null,null,null,null,null,null,null,null,4,null,null,null,null,null,null,null," ",null,null,null,null,null,null,null,null,null,null,null,null,null,null,4]
[null,null,null,null,5,null,null,5,null,null,null,null,null,null,null,null,null,null,null,5,null,null,null,null,null,null,null," ",null,null,null,null,null,null,null,null,null,null,null,null,null,null,5]
[null,{"$f":"B70+1","v":14},null,null,1,null,null,1,null,null,{"$f":"G75","v":0},null,{"$f":"IF(L75=1,\"Muy baja\",IF(L75=2,\"Baja\",IF(L75=3,\"Media\",IF(L75=4,\"Alta\",IF(L75=5,\"Muy alta\",\" \")))))","v":" "},null,{"$f":"IF(N75=4,\"Insignificante\",IF(N75=8,\"Menor\",IF(N75=12,\"Moderado\",IF(N75=16,\"Mayor\",IF(N75=20,\"Catastrófico\",IF(N75=\"No aplica\",\"No aplica\",\" \"))))))","v":" "},{"$f":"J75&1","v":"1"},{"$f":"IFERROR(L75*N75,\"No aplica\")","v":0},{"$f":"IF(AND(L75=1,N75=4),\"Aceptable\",IF(AND(L75=2,N75=4),\"Aceptable\",IF(AND(L75=3,N75=4),\"Aceptable\",IF(AND(L75=4,N75=4),\"Tolerable\",IF(AND(L75=5,N75=4),\"Importante\",IF(AND(L75=1,N75=8),\"Aceptable\",IF(AND(L75=2,N75=8),\"Aceptable\",IF(AND(L75=3,N75=8),\"Tolerable\",IF(AND(L75=4,N75=8),\"Importante\",IF(AND(L75=5,N75=8),\"Importante\",IF(AND(L75=1,N75=12),\"Tolerable\",IF(AND(L75=2,N75=12),\"Tolerable\",IF(AND(L75=3,N75=12),\"Importante\",IF(AND(L75=4,N75=12),\"Importante\",IF(AND(L75=5,N75=12),\"Inaceptable\",IF(AND(L75=1,N75=16),\"Importante\",IF(AND(L75=2,N75=16),\"Importante\",IF(AND(L75=3,N75=16),\"Inaceptable\",IF(AND(L75=4,N75=16),\"Inaceptable\",IF(AND(L75=5,N75=16),\"Inaceptable\",IF(AND(L75=1,N75=20),\"Importante\",IF(AND(L75=2,N75=20),\"Inaceptable\",IF(AND(L75=3,N75=20),\"Inaceptable\",IF(AND(L75=4,N75=20),\"Inaceptable\",IF(AND(L75=5,N75=20),\"Inaceptable\",IF(Q75=\"No aplica\",\"No aplica\",\" \"))))))))))))))))))))))))))","v":" "},{"$f":"K75","v":0},1,null,null,null,null,null,null,null,{"$f":"+IF(AA75=1,\"Nulo\",IF(AA75=2,\"Bajo\",IF(AA75=3,\"Medio\",IF(AA75=4,\"Alto\",IF(AA75=5,\"Muy alto\",\" \")))))","v":" "},{"$f":"S75","v":0},{"$f":"J75&2","v":"2"},null,{"$f":"IF(AE75=1,\"Muy baja\",IF(AE75=2,\"Baja\",IF(AE75=3,\"Media\",IF(AE75=4,\"Alta\",IF(AE75=5,\"Muy alta\",IF(AE75=\"No aplica\",\"No aplica\",\" \"))))))","v":" "},{"$f":"J75&3","v":"3"},null,{"$f":"IF(AH75=4,\"Insignificante\",IF(AH75=8,\"Menor\",IF(AH75=12,\"Moderado\",IF(AH75=16,\"Mayor\",IF(AH75=20,\"Catastrófico\",IF(AH75=\"No aplica\",\"No aplica\",\" \"))))))","v":" "},{"$f":"Q75","v":0},{"$f":"R75","v":" "},{"$f":"IFERROR(AE75*AH75,\"No aplica\")","v":0},{"$f":"IF(AND(AE75=1,AH75=4),\"Aceptable\",IF(AND(AE75=2,AH75=4),\"Aceptable\",IF(AND(AE75=3,AH75=4),\"Aceptable\",IF(AND(AE75=4,AH75=4),\"Tolerable\",IF(AND(AE75=5,AH75=4),\"Importante\",IF(AND(AE75=1,AH75=8),\"Aceptable\",IF(AND(AE75=2,AH75=8),\"Aceptable\",IF(AND(AE75=3,AH75=8),\"Tolerable\",IF(AND(AE75=4,AH75=8),\"Importante\",IF(AND(AE75=5,AH75=8),\"Importante\",IF(AND(AE75=1,AH75=12),\"Tolerable\",IF(AND(AE75=2,AH75=12),\"Tolerable\",IF(AND(AE75=3,AH75=12),\"Importante\",IF(AND(AE75=4,AH75=12),\"Importante\",IF(AND(AE75=5,AH75=12),\"Inaceptable\",IF(AND(AE75=1,AH75=16),\"Importante\",IF(AND(AE75=2,AH75=16),\"Importante\",IF(AND(AE75=3,AH75=16),\"Inaceptable\",IF(AND(AE75=4,AH75=16),\"Inaceptable\",IF(AND(AE75=5,AH75=16),\"Inaceptable\",IF(AND(AE75=1,AH75=20),\"Importante\",IF(AND(AE75=2,AH75=20),\"Inaceptable\",IF(AND(AE75=3,AH75=20),\"Inaceptable\",IF(AND(AE75=4,AH75=20),\"Inaceptable\",IF(AND(AE75=5,AH75=20),\"Inaceptable\",IF(AE75=\"No aplica\",\"No aplica\",\" \"))))))))))))))))))))))))))","v":" "},{"$f":"J75&4","v":"4"},null,{"$f":"AC75","v":0},1]
[null,null,null,null,2,null,null,2,null,null,null,null,null,null,null,null,null,null,null,2,null,null,null,null,null,null,null," ",null,null,null,null,null,null,null,null,null,null,null,null,null,null,2]
[null,null,null,null,3,null,null,3,null,null,null,null,null,null,null,null,null,null,null,3,null,null,null,null,null,null,null," ",null,null,null,null,null,null,null,null,null,null,null,null,null,null,3]
[null,null,null,null,4,null,null,4,null,null,null,null,null,null,null,null,null,null,null,4,null,null,null,null,null,null,null," ",null,null,null,null,null,null,null,null,null,null,null,null,null,null,4]
[null,null,null,null,5,null,null,5,null,null,null,null,null,null,null,null,null,null,null,5,null,null,null,null,null,null,null," ",null,null,null,null,null,null,null,null,null,null,null,null,null,null,5]
[null,{"$f":"B75+1","v":15},null,null,1,null,null,1,null,null,{"$f":"G80","v":0},null,{"$f":"IF(L80=1,\"Muy baja\",IF(L80=2,\"Baja\",IF(L80=3,\"Media\",IF(L80=4,\"Alta\",IF(L80=5,\"Muy alta\",\" \")))))","v":" "},null,{"$f":"IF(N80=4,\"Insignificante\",IF(N80=8,\"Menor\",IF(N80=12,\"Moderado\",IF(N80=16,\"Mayor\",IF(N80=20,\"Catastrófico\",IF(N80=\"No aplica\",\"No aplica\",\" \"))))))","v":" "},{"$f":"J80&1","v":"1"},{"$f":"IFERROR(L80*N80,\"No aplica\")","v":0},{"$f":"IF(AND(L80=1,N80=4),\"Aceptable\",IF(AND(L80=2,N80=4),\"Aceptable\",IF(AND(L80=3,N80=4),\"Aceptable\",IF(AND(L80=4,N80=4),\"Tolerable\",IF(AND(L80=5,N80=4),\"Importante\",IF(AND(L80=1,N80=8),\"Aceptable\",IF(AND(L80=2,N80=8),\"Aceptable\",IF(AND(L80=3,N80=8),\"Tolerable\",IF(AND(L80=4,N80=8),\"Importante\",IF(AND(L80=5,N80=8),\"Importante\",IF(AND(L80=1,N80=12),\"Tolerable\",IF(AND(L80=2,N80=12),\"Tolerable\",IF(AND(L80=3,N80=12),\"Importante\",IF(AND(L80=4,N80=12),\"Importante\",IF(AND(L80=5,N80=12),\"Inaceptable\",IF(AND(L80=1,N80=16),\"Importante\",IF(AND(L80=2,N80=16),\"Importante\",IF(AND(L80=3,N80=16),\"Inaceptable\",IF(AND(L80=4,N80=16),\"Inaceptable\",IF(AND(L80=5,N80=16),\"Inaceptable\",IF(AND(L80=1,N80=20),\"Importante\",IF(AND(L80=2,N80=20),\"Inaceptable\",IF(AND(L80=3,N80=20),\"Inaceptable\",IF(AND(L80=4,N80=20),\"Inaceptable\",IF(AND(L80=5,N80=20),\"Inaceptable\",IF(Q80=\"No aplica\",\"No aplica\",\" \"))))))))))))))))))))))))))","v":" "},{"$f":"K80","v":0},1,null,null,null,null,null,null,null," ",{"$f":"S80","v":0},{"$f":"J80&2","v":"2"},null,{"$f":"IF(AE80=1,\"Muy baja\",IF(AE80=2,\"Baja\",IF(AE80=3,\"Media\",IF(AE80=4,\"Alta\",IF(AE80=5,\"Muy alta\",IF(AE80=\"No aplica\",\"No aplica\",\" \"))))))","v":" "},{"$f":"J80&3","v":"3"},null,{"$f":"IF(AH80=4,\"Insignificante\",IF(AH80=8,\"Menor\",IF(AH80=12,\"Moderado\",IF(AH80=16,\"Mayor\",IF(AH80=20,\"Catastrófico\",IF(AH80=\"No aplica\",\"No aplica\",\" \"))))))","v":" "},{"$f":"Q80","v":0},{"$f":"R80","v":" "},{"$f":"IFERROR(AE80*AH80,\"No aplica\")","v":0},{"$f":"IF(AND(AE80=1,AH80=4),\"Aceptable\",IF(AND(AE80=2,AH80=4),\"Aceptable\",IF(AND(AE80=3,AH80=4),\"Aceptable\",IF(AND(AE80=4,AH80=4),\"Tolerable\",IF(AND(AE80=5,AH80=4),\"Importante\",IF(AND(AE80=1,AH80=8),\"Aceptable\",IF(AND(AE80=2,AH80=8),\"Aceptable\",IF(AND(AE80=3,AH80=8),\"Tolerable\",IF(AND(AE80=4,AH80=8),\"Importante\",IF(AND(AE80=5,AH80=8),\"Importante\",IF(AND(AE80=1,AH80=12),\"Tolerable\",IF(AND(AE80=2,AH80=12),\"Tolerable\",IF(AND(AE80=3,AH80=12),\"Importante\",IF(AND(AE80=4,AH80=12),\"Importante\",IF(AND(AE80=5,AH80=12),\"Inaceptable\",IF(AND(AE80=1,AH80=16),\"Importante\",IF(AND(AE80=2,AH80=16),\"Importante\",IF(AND(AE80=3,AH80=16),\"Inaceptable\",IF(AND(AE80=4,AH80=16),\"Inaceptable\",IF(AND(AE80=5,AH80=16),\"Inaceptable\",IF(AND(AE80=1,AH80=20),\"Importante\",IF(AND(AE80=2,AH80=20),\"Inaceptable\",IF(AND(AE80=3,AH80=20),\"Inaceptable\",IF(AND(AE80=4,AH80=20),\"Inaceptable\",IF(AND(AE80=5,AH80=20),\"Inaceptable\",IF(AE80=\"No aplica\",\"No aplica\",\" \"))))))))))))))))))))))))))","v":" "},{"$f":"J80&4","v":"4"},null,{"$f":"AC80","v":0},1]
[null,null,null,null,2,null,null,2,null,null,null,null,null,null,null,null,null,null,null,2,null,null,null,null,null,null,null," ",null,null,null,null,null,null,null,null,null,null,null,null,null,null,2]
[null,null,null,null,3,null,null,3,null,null,null,null,null,null,null,null,null,null,null,3,null,null,null,null,null,null,null," ",null,null,null,null,null,null,null,null,null,null,null,null,null,null,3]
[null,null,null,null,4,null,null,4,null,null,null,null,null,null,null,null,null,null,null,4,null,null,null,null,null,null,null," ",null,null,null,null,null,null,null,null,null,null,null,null,null,null,4]
[null,null,null,null,5,null,null,5,null,null,null,null,null,null,null,null,null,null,null,5,null,null,null,null,null,null,null," ",null,null,null,null,null,null,null,null,null,null,null,null,null,null,5]
[null,{"$f":"B80+1","v":16},null,null,1,null,null,1,null,null,{"$f":"G85","v":0},null,{"$f":"IF(L85=1,\"Muy baja\",IF(L85=2,\"Baja\",IF(L85=3,\"Media\",IF(L85=4,\"Alta\",IF(L85=5,\"Muy alta\",\" \")))))","v":" "},null,{"$f":"IF(N85=4,\"Insignificante\",IF(N85=8,\"Menor\",IF(N85=12,\"Moderado\",IF(N85=16,\"Mayor\",IF(N85=20,\"Catastrófico\",IF(N85=\"No aplica\",\"No aplica\",\" \"))))))","v":" "},{"$f":"J85&1","v":"1"},{"$f":"IFERROR(L85*N85,\"No aplica\")","v":0},{"$f":"IF(AND(L85=1,N85=4),\"Aceptable\",IF(AND(L85=2,N85=4),\"Aceptable\",IF(AND(L85=3,N85=4),\"Aceptable\",IF(AND(L85=4,N85=4),\"Tolerable\",IF(AND(L85=5,N85=4),\"Importante\",IF(AND(L85=1,N85=8),\"Aceptable\",IF(AND(L85=2,N85=8),\"Aceptable\",IF(AND(L85=3,N85=8),\"Tolerable\",IF(AND(L85=4,N85=8),\"Importante\",IF(AND(L85=5,N85=8),\"Importante\",IF(AND(L85=1,N85=12),\"Tolerable\",IF(AND(L85=2,N85=12),\"Tolerable\",IF(AND(L85=3,N85=12),\"Importante\",IF(AND(L85=4,N85=12),\"Importante\",IF(AND(L85=5,N85=12),\"Inaceptable\",IF(AND(L85=1,N85=16),\"Importante\",IF(AND(L85=2,N85=16),\"Importante\",IF(AND(L85=3,N85=16),\"Inaceptable\",IF(AND(L85=4,N85=16),\"Inaceptable\",IF(AND(L85=5,N85=16),\"Inaceptable\",IF(AND(L85=1,N85=20),\"Importante\",IF(AND(L85=2,N85=20),\"Inaceptable\",IF(AND(L85=3,N85=20),\"Inaceptable\",IF(AND(L85=4,N85=20),\"Inaceptable\",IF(AND(L85=5,N85=20),\"Inaceptable\",IF(Q85=\"No aplica\",\"No aplica\",\" \"))))))))))))))))))))))))))","v":" "},{"$f":"K85","v":0},1,null,null,null,null,null,null,null," ",{"$f":"S85","v":0},{"$f":"J85&2","v":"2"},null,{"$f":"IF(AE85=1,\"Muy baja\",IF(AE85=2,\"Baja\",IF(AE85=3,\"Media\",IF(AE85=4,\"Alta\",IF(AE85=5,\"Muy alta\",IF(AE85=\"No aplica\",\"No aplica\",\" \"))))))","v":" "},{"$f":"J85&3","v":"3"},null,{"$f":"IF(AH85=4,\"Insignificante\",IF(AH85=8,\"Menor\",IF(AH85=12,\"Moderado\",IF(AH85=16,\"Mayor\",IF(AH85=20,\"Catastrófico\",IF(AH85=\"No aplica\",\"No aplica\",\" \"))))))","v":" "},{"$f":"Q85","v":0},{"$f":"R85","v":" "},{"$f":"IFERROR(AE85*AH85,\"No aplica\")","v":0},{"$f":"IF(AND(AE85=1,AH85=4),\"Aceptable\",IF(AND(AE85=2,AH85=4),\"Aceptable\",IF(AND(AE85=3,AH85=4),\"Aceptable\",IF(AND(AE85=4,AH85=4),\"Tolerable\",IF(AND(AE85=5,AH85=4),\"Importante\",IF(AND(AE85=1,AH85=8),\"Aceptable\",IF(AND(AE85=2,AH85=8),\"Aceptable\",IF(AND(AE85=3,AH85=8),\"Tolerable\",IF(AND(AE85=4,AH85=8),\"Importante\",IF(AND(AE85=5,AH85=8),\"Importante\",IF(AND(AE85=1,AH85=12),\"Tolerable\",IF(AND(AE85=2,AH85=12),\"Tolerable\",IF(AND(AE85=3,AH85=12),\"Importante\",IF(AND(AE85=4,AH85=12),\"Importante\",IF(AND(AE85=5,AH85=12),\"Inaceptable\",IF(AND(AE85=1,AH85=16),\"Importante\",IF(AND(AE85=2,AH85=16),\"Importante\",IF(AND(AE85=3,AH85=16),\"Inaceptable\",IF(AND(AE85=4,AH85=16),\"Inaceptable\",IF(AND(AE85=5,AH85=16),\"Inaceptable\",IF(AND(AE85=1,AH85=20),\"Importante\",IF(AND(AE85=2,AH85=20),\"Inaceptable\",IF(AND(AE85=3,AH85=20),\"Inaceptable\",IF(AND(AE85=4,AH85=20),\"Inaceptable\",IF(AND(AE85=5,AH85=20),\"Inaceptable\",IF(AE85=\"No aplica\",\"No aplica\",\" \"))))))))))))))))))))))))))","v":" "},{"$f":"J85&4","v":"4"},null,{"$f":"AC85","v":0},1]
[null,null,null,null,2,null,null,2,null,null,null,null,null,null,null,null,null,null,null,2,null,null,null,null,null,null,null," ",null,null,null,null,null,null,null,null,null,null,null,null,null,null,2]
[null,null,null,null,3,null,null,3,null,null,null,null,null,null,null,null,null,null,null,3,null,null,null,null,null,null,null," ",null,null,null,null,null,null,null,null,null,null,null,null,null,null,3]
[null,null,null,null,4,null,null,4,null,null,null,null,null,null,null,null,null,null,null,4,null,null,null,null,null,null,null," ",null,null,null,null,null,null,null,null,null,null,null,null,null,null,4]
[null,null,null,null,5,null,null,5,null,null,null,null,null,null,null,null,null,null,null,5,null,null,null,null,null,null,null," ",null,null,null,null,null,null,null,null,null,null,null,null,null,null,5]
[null,{"$f":"B85+1","v":17},null,null,1,null,null,1,null,null,{"$f":"G90","v":0},null,{"$f":"IF(L90=1,\"Muy baja\",IF(L90=2,\"Baja\",IF(L90=3,\"Media\",IF(L90=4,\"Alta\",IF(L90=5,\"Muy alta\",\" \")))))","v":" "},null,{"$f":"IF(N90=4,\"Insignificante\",IF(N90=8,\"Menor\",IF(N90=12,\"Moderado\",IF(N90=16,\"Mayor\",IF(N90=20,\"Catastrófico\",IF(N90=\"No aplica\",\"No aplica\",\" \"))))))","v":" "},{"$f":"J90&1","v":"1"},{"$f":"IFERROR(L90*N90,\"No aplica\")","v":0},{"$f":"IF(AND(L90=1,N90=4),\"Aceptable\",IF(AND(L90=2,N90=4),\"Aceptable\",IF(AND(L90=3,N90=4),\"Aceptable\",IF(AND(L90=4,N90=4),\"Tolerable\",IF(AND(L90=5,N90=4),\"Importante\",IF(AND(L90=1,N90=8),\"Aceptable\",IF(AND(L90=2,N90=8),\"Aceptable\",IF(AND(L90=3,N90=8),\"Tolerable\",IF(AND(L90=4,N90=8),\"Importante\",IF(AND(L90=5,N90=8),\"Importante\",IF(AND(L90=1,N90=12),\"Tolerable\",IF(AND(L90=2,N90=12),\"Tolerable\",IF(AND(L90=3,N90=12),\"Importante\",IF(AND(L90=4,N90=12),\"Importante\",IF(AND(L90=5,N90=12),\"Inaceptable\",IF(AND(L90=1,N90=16),\"Importante\",IF(AND(L90=2,N90=16),\"Importante\",IF(AND(L90=3,N90=16),\"Inaceptable\",IF(AND(L90=4,N90=16),\"Inaceptable\",IF(AND(L90=5,N90=16),\"Inaceptable\",IF(AND(L90=1,N90=20),\"Importante\",IF(AND(L90=2,N90=20),\"Inaceptable\",IF(AND(L90=3,N90=20),\"Inaceptable\",IF(AND(L90=4,N90=20),\"Inaceptable\",IF(AND(L90=5,N90=20),\"Inaceptable\",IF(Q90=\"No aplica\",\"No aplica\",\" \"))))))))))))))))))))))))))","v":" "},{"$f":"K90","v":0},1,null,null,null,null,null,null,null," ",{"$f":"S90","v":0},{"$f":"J90&2","v":"2"},null,{"$f":"IF(AE90=1,\"Muy baja\",IF(AE90=2,\"Baja\",IF(AE90=3,\"Media\",IF(AE90=4,\"Alta\",IF(AE90=5,\"Muy alta\",IF(AE90=\"No aplica\",\"No aplica\",\" \"))))))","v":" "},{"$f":"J90&3","v":"3"},null,{"$f":"IF(AH90=4,\"Insignificante\",IF(AH90=8,\"Menor\",IF(AH90=12,\"Moderado\",IF(AH90=16,\"Mayor\",IF(AH90=20,\"Catastrófico\",IF(AH90=\"No aplica\",\"No aplica\",\" \"))))))","v":" "},{"$f":"Q90","v":0},{"$f":"R90","v":" "},{"$f":"IFERROR(AE90*AH90,\"No aplica\")","v":0},{"$f":"IF(AND(AE90=1,AH90=4),\"Aceptable\",IF(AND(AE90=2,AH90=4),\"Aceptable\",IF(AND(AE90=3,AH90=4),\"Aceptable\",IF(AND(AE90=4,AH90=4),\"Tolerable\",IF(AND(AE90=5,AH90=4),\"Importante\",IF(AND(AE90=1,AH90=8),\"Aceptable\",IF(AND(AE90=2,AH90=8),\"Aceptable\",IF(AND(AE90=3,AH90=8),\"Tolerable\",IF(AND(AE90=4,AH90=8),\"Importante\",IF(AND(AE90=5,AH90=8),\"Importante\",IF(AND(AE90=1,AH90=12),\"Tolerable\",IF(AND(AE90=2,AH90=12),\"Tolerable\",IF(AND(AE90=3,AH90=12),\"Importante\",IF(AND(AE90=4,AH90=12),\"Importante\",IF(AND(AE90=5,AH90=12),\"Inaceptable\",IF(AND(AE90=1,AH90=16),\"Importante\",IF(AND(AE90=2,AH90=16),\"Importante\",IF(AND(AE90=3,AH90=16),\"Inaceptable\",IF(AND(AE90=4,AH90=16),\"Inaceptable\",IF(AND(AE90=5,AH90=16),\"Inaceptable\",IF(AND(AE90=1,AH90=20),\"Importante\",IF(AND(AE90=2,AH90=20),\"Inaceptable\",IF(AND(AE90=3,AH90=20),\"Inaceptable\",IF(AND(AE90=4,AH90=20),\"Inaceptable\",IF(AND(AE90=5,AH90=20),\"Inaceptable\",IF(AE90=\"No aplica\",\"No aplica\",\" \"))))))))))))))))))))))))))","v":" "},{"$f":"J90&4","v":"4"},null,{"$f":"AC90","v":0},1]
[null,null,null,null,2,null,null,2,null,null,null,null,null,null,null,null,null,null,null,2,null,null,null,null,null,null,null," ",null,null,null,null,null,null,null,null,null,null,null,null,null,null,2]
[null,null,null,null,3,null,null,3,null,null,null,null,null,null,null,null,null,null,null,3,null,null,null,null,null,null,null," ",null,null,null,null,null,null,null,null,null,null,null,null,null,null,3]
[null,null,null,null,4,null,null,4,null,null,null,null,null,null,null,null,null,null,null,4,null,null,null,null,null,null,null," ",null,null,null,null,null,null,null,null,null,null,null,null,null,null,4]
[null,null,null,null,5,null,null,5,null,null,null,null,null,null,null,null,null,null,null,5,null,null,null,null,null,null,null," ",null,null,null,null,null,null,null,null,null,null,null,null,null,null,5]
[null,{"$f":"B90+1","v":18},null,null,1,null,null,1,null,null,{"$f":"G95","v":0},null,{"$f":"IF(L95=1,\"Muy baja\",IF(L95=2,\"Baja\",IF(L95=3,\"Media\",IF(L95=4,\"Alta\",IF(L95=5,\"Muy alta\",\" \")))))","v":" "},null,{"$f":"IF(N95=4,\"Insignificante\",IF(N95=8,\"Menor\",IF(N95=12,\"Moderado\",IF(N95=16,\"Mayor\",IF(N95=20,\"Catastrófico\",IF(N95=\"No aplica\",\"No aplica\",\" \"))))))","v":" "},{"$f":"J95&1","v":"1"},{"$f":"IFERROR(L95*N95,\"No aplica\")","v":0},{"$f":"IF(AND(L95=1,N95=4),\"Aceptable\",IF(AND(L95=2,N95=4),\"Aceptable\",IF(AND(L95=3,N95=4),\"Aceptable\",IF(AND(L95=4,N95=4),\"Tolerable\",IF(AND(L95=5,N95=4),\"Importante\",IF(AND(L95=1,N95=8),\"Aceptable\",IF(AND(L95=2,N95=8),\"Aceptable\",IF(AND(L95=3,N95=8),\"Tolerable\",IF(AND(L95=4,N95=8),\"Importante\",IF(AND(L95=5,N95=8),\"Importante\",IF(AND(L95=1,N95=12),\"Tolerable\",IF(AND(L95=2,N95=12),\"Tolerable\",IF(AND(L95=3,N95=12),\"Importante\",IF(AND(L95=4,N95=12),\"Importante\",IF(AND(L95=5,N95=12),\"Inaceptable\",IF(AND(L95=1,N95=16),\"Importante\",IF(AND(L95=2,N95=16),\"Importante\",IF(AND(L95=3,N95=16),\"Inaceptable\",IF(AND(L95=4,N95=16),\"Inaceptable\",IF(AND(L95=5,N95=16),\"Inaceptable\",IF(AND(L95=1,N95=20),\"Importante\",IF(AND(L95=2,N95=20),\"Inaceptable\",IF(AND(L95=3,N95=20),\"Inaceptable\",IF(AND(L95=4,N95=20),\"Inaceptable\",IF(AND(L95=5,N95=20),\"Inaceptable\",IF(Q95=\"No aplica\",\"No aplica\",\" \"))))))))))))))))))))))))))","v":" "},{"$f":"K95","v":0},1,null,null,null,null,null,null,null," ",{"$f":"S95","v":0},{"$f":"J95&2","v":"2"},null,{"$f":"IF(AE95=1,\"Muy baja\",IF(AE95=2,\"Baja\",IF(AE95=3,\"Media\",IF(AE95=4,\"Alta\",IF(AE95=5,\"Muy alta\",IF(AE95=\"No aplica\",\"No aplica\",\" \"))))))","v":" "},{"$f":"J95&3","v":"3"},null,{"$f":"IF(AH95=4,\"Insignificante\",IF(AH95=8,\"Menor\",IF(AH95=12,\"Moderado\",IF(AH95=16,\"Mayor\",IF(AH95=20,\"Catastrófico\",IF(AH95=\"No aplica\",\"No aplica\",\" \"))))))","v":" "},{"$f":"Q95","v":0},{"$f":"R95","v":" "},{"$f":"IFERROR(AE95*AH95,\"No aplica\")","v":0},{"$f":"IF(AND(AE95=1,AH95=4),\"Aceptable\",IF(AND(AE95=2,AH95=4),\"Aceptable\",IF(AND(AE95=3,AH95=4),\"Aceptable\",IF(AND(AE95=4,AH95=4),\"Tolerable\",IF(AND(AE95=5,AH95=4),\"Importante\",IF(AND(AE95=1,AH95=8),\"Aceptable\",IF(AND(AE95=2,AH95=8),\"Aceptable\",IF(AND(AE95=3,AH95=8),\"Tolerable\",IF(AND(AE95=4,AH95=8),\"Importante\",IF(AND(AE95=5,AH95=8),\"Importante\",IF(AND(AE95=1,AH95=12),\"Tolerable\",IF(AND(AE95=2,AH95=12),\"Tolerable\",IF(AND(AE95=3,AH95=12),\"Importante\",IF(AND(AE95=4,AH95=12),\"Importante\",IF(AND(AE95=5,AH95=12),\"Inaceptable\",IF(AND(AE95=1,AH95=16),\"Importante\",IF(AND(AE95=2,AH95=16),\"Importante\",IF(AND(AE95=3,AH95=16),\"Inaceptable\",IF(AND(AE95=4,AH95=16),\"Inaceptable\",IF(AND(AE95=5,AH95=16),\"Inaceptable\",IF(AND(AE95=1,AH95=20),\"Importante\",IF(AND(AE95=2,AH95=20),\"Inaceptable\",IF(AND(AE95=3,AH95=20),\"Inaceptable\",IF(AND(AE95=4,AH95=20),\"Inaceptable\",IF(AND(AE95=5,AH95=20),\"Inaceptable\",IF(AE95=\"No aplica\",\"No aplica\",\" \"))))))))))))))))))))))))))","v":" "},{"$f":"J95&4","v":"4"},null,{"$f":"AC95","v":0},1]
[null,null,null,null,2,null,null,2,null,null,null,null,null,null,null,null,null,null,null,2,null,null,null,null,null,null,null," ",null,null,null,null,null,null,null,null,null,null,null,null,null,null,2]
[null,null,null,null,3,null,null,3,null,null,null,null,null,null,null,null,null,null,null,3,null,null,null,null,null,null,null," ",null,null,null,null,null,null,null,null,null,null,null,null,null,null,3]
[null,null,null,null,4,null,null,4,null,null,null,null,null,null,null,null,null,null,null,4,null,null,null,null,null,null,null," ",null,null,null,null,null,null,null,null,null,null,null,null,null,null,4]
[null,null,null,null,5,null,null,5,null,null,null,null,null,null,null,null,null,null,null,5,null,null,null,null,null,null,null," ",null,null,null,null,null,null,null,null,null,null,null,null,null,null,5]
[null,{"$f":"B95+1","v":19},null,null,1,null,null,1,null,null,{"$f":"G100","v":0},null,{"$f":"IF(L100=1,\"Muy baja\",IF(L100=2,\"Baja\",IF(L100=3,\"Media\",IF(L100=4,\"Alta\",IF(L100=5,\"Muy alta\",\" \")))))","v":" "},null,{"$f":"IF(N100=4,\"Insignificante\",IF(N100=8,\"Menor\",IF(N100=12,\"Moderado\",IF(N100=16,\"Mayor\",IF(N100=20,\"Catastrófico\",IF(N100=\"No aplica\",\"No aplica\",\" \"))))))","v":" "},{"$f":"J100&1","v":"1"},{"$f":"IFERROR(L100*N100,\"No aplica\")","v":0},{"$f":"IF(AND(L100=1,N100=4),\"Aceptable\",IF(AND(L100=2,N100=4),\"Aceptable\",IF(AND(L100=3,N100=4),\"Aceptable\",IF(AND(L100=4,N100=4),\"Tolerable\",IF(AND(L100=5,N100=4),\"Importante\",IF(AND(L100=1,N100=8),\"Aceptable\",IF(AND(L100=2,N100=8),\"Aceptable\",IF(AND(L100=3,N100=8),\"Tolerable\",IF(AND(L100=4,N100=8),\"Importante\",IF(AND(L100=5,N100=8),\"Importante\",IF(AND(L100=1,N100=12),\"Tolerable\",IF(AND(L100=2,N100=12),\"Tolerable\",IF(AND(L100=3,N100=12),\"Importante\",IF(AND(L100=4,N100=12),\"Importante\",IF(AND(L100=5,N100=12),\"Inaceptable\",IF(AND(L100=1,N100=16),\"Importante\",IF(AND(L100=2,N100=16),\"Importante\",IF(AND(L100=3,N100=16),\"Inaceptable\",IF(AND(L100=4,N100=16),\"Inaceptable\",IF(AND(L100=5,N100=16),\"Inaceptable\",IF(AND(L100=1,N100=20),\"Importante\",IF(AND(L100=2,N100=20),\"Inaceptable\",IF(AND(L100=3,N100=20),\"Inaceptable\",IF(AND(L100=4,N100=20),\"Inaceptable\",IF(AND(L100=5,N100=20),\"Inaceptable\",IF(Q100=\"No aplica\",\"No aplica\",\" \"))))))))))))))))))))))))))","v":" "},{"$f":"K100","v":0},1,null,null,null,null,null,null,null," ",{"$f":"S100","v":0},{"$f":"J100&2","v":"2"},null,{"$f":"IF(AE100=1,\"Muy baja\",IF(AE100=2,\"Baja\",IF(AE100=3,\"Media\",IF(AE100=4,\"Alta\",IF(AE100=5,\"Muy alta\",IF(AE100=\"No aplica\",\"No aplica\",\" \"))))))","v":" "},{"$f":"J100&3","v":"3"},null,{"$f":"IF(AH100=4,\"Insignificante\",IF(AH100=8,\"Menor\",IF(AH100=12,\"Moderado\",IF(AH100=16,\"Mayor\",IF(AH100=20,\"Catastrófico\",IF(AH100=\"No aplica\",\"No aplica\",\" \"))))))","v":" "},{"$f":"Q100","v":0},{"$f":"R100","v":" "},{"$f":"IFERROR(AE100*AH100,\"No aplica\")","v":0},{"$f":"IF(AND(AE100=1,AH100=4),\"Aceptable\",IF(AND(AE100=2,AH100=4),\"Aceptable\",IF(AND(AE100=3,AH100=4),\"Aceptable\",IF(AND(AE100=4,AH100=4),\"Tolerable\",IF(AND(AE100=5,AH100=4),\"Importante\",IF(AND(AE100=1,AH100=8),\"Aceptable\",IF(AND(AE100=2,AH100=8),\"Aceptable\",IF(AND(AE100=3,AH100=8),\"Tolerable\",IF(AND(AE100=4,AH100=8),\"Importante\",IF(AND(AE100=5,AH100=8),\"Importante\",IF(AND(AE100=1,AH100=12),\"Tolerable\",IF(AND(AE100=2,AH100=12),\"Tolerable\",IF(AND(AE100=3,AH100=12),\"Importante\",IF(AND(AE100=4,AH100=12),\"Importante\",IF(AND(AE100=5,AH100=12),\"Inaceptable\",IF(AND(AE100=1,AH100=16),\"Importante\",IF(AND(AE100=2,AH100=16),\"Importante\",IF(AND(AE100=3,AH100=16),\"Inaceptable\",IF(AND(AE100=4,AH100=16),\"Inaceptable\",IF(AND(AE100=5,AH100=16),\"Inaceptable\",IF(AND(AE100=1,AH100=20),\"Importante\",IF(AND(AE100=2,AH100=20),\"Inaceptable\",IF(AND(AE100=3,AH100=20),\"Inaceptable\",IF(AND(AE100=4,AH100=20),\"Inaceptable\",IF(AND(AE100=5,AH100=20),\"Inaceptable\",IF(AE100=\"No aplica\",\"No aplica\",\" \"))))))))))))))))))))))))))","v":" "},{"$f":"J100&4","v":"4"},null,{"$f":"AC100","v":0},1]
[null,null,null,null,2,null,null,2,null,null,null,null,null,null,null,null,null,null,null,2,null,null,null,null,null,null,null," ",null,null,null,null,null,null,null,null,null,null,null,null,null,null,2]
[null,null,null,null,3,null,null,3,null,null,null,null,null,null,null,null,null,null,null,3,null,null,null,null,null,null,null," ",null,null,null,null,null,null,null,null,null,null,null,null,null,null,3]
[null,null,null,null,4,null,null,4,null,null,null,null,null,null,null,null,null,null,null,4,null,null,null,null,null,null,null," ",null,null,null,null,null,null,null,null,null,null,null,null,null,null,4]
[null,null,null,null,5,null,null,5,null,null,null,null,null,null,null,null,null,null,null,5,null,null,null,null,null,null,null," ",null,null,null,null,null,null,null,null,null,null,null,null,null,null,5]
[null,{"$f":"B100+1","v":20},null,null,1,null,null,1,null,null,{"$f":"G105","v":0},null,{"$f":"IF(L105=1,\"Muy baja\",IF(L105=2,\"Baja\",IF(L105=3,\"Media\",IF(L105=4,\"Alta\",IF(L105=5,\"Muy alta\",\" \")))))","v":" "},null,{"$f":"IF(N105=4,\"Insignificante\",IF(N105=8,\"Menor\",IF(N105=12,\"Moderado\",IF(N105=16,\"Mayor\",IF(N105=20,\"Catastrófico\",IF(N105=\"No aplica\",\"No aplica\",\" \"))))))","v":" "},{"$f":"J105&1","v":"1"},{"$f":"IFERROR(L105*N105,\"No aplica\")","v":0},{"$f":"IF(AND(L105=1,N105=4),\"Aceptable\",IF(AND(L105=2,N105=4),\"Aceptable\",IF(AND(L105=3,N105=4),\"Aceptable\",IF(AND(L105=4,N105=4),\"Tolerable\",IF(AND(L105=5,N105=4),\"Importante\",IF(AND(L105=1,N105=8),\"Aceptable\",IF(AND(L105=2,N105=8),\"Aceptable\",IF(AND(L105=3,N105=8),\"Tolerable\",IF(AND(L105=4,N105=8),\"Importante\",IF(AND(L105=5,N105=8),\"Importante\",IF(AND(L105=1,N105=12),\"Tolerable\",IF(AND(L105=2,N105=12),\"Tolerable\",IF(AND(L105=3,N105=12),\"Importante\",IF(AND(L105=4,N105=12),\"Importante\",IF(AND(L105=5,N105=12),\"Inaceptable\",IF(AND(L105=1,N105=16),\"Importante\",IF(AND(L105=2,N105=16),\"Importante\",IF(AND(L105=3,N105=16),\"Inaceptable\",IF(AND(L105=4,N105=16),\"Inaceptable\",IF(AND(L105=5,N105=16),\"Inaceptable\",IF(AND(L105=1,N105=20),\"Importante\",IF(AND(L105=2,N105=20),\"Inaceptable\",IF(AND(L105=3,N105=20),\"Inaceptable\",IF(AND(L105=4,N105=20),\"Inaceptable\",IF(AND(L105=5,N105=20),\"Inaceptable\",IF(Q105=\"No aplica\",\"No aplica\",\" \"))))))))))))))))))))))))))","v":" "},{"$f":"K105","v":0},1,null,null,null,null,null,null,null," ",{"$f":"S105","v":0},{"$f":"J105&2","v":"2"},null,{"$f":"IF(AE105=1,\"Muy baja\",IF(AE105=2,\"Baja\",IF(AE105=3,\"Media\",IF(AE105=4,\"Alta\",IF(AE105=5,\"Muy alta\",IF(AE105=\"No aplica\",\"No aplica\",\" \"))))))","v":" "},{"$f":"J105&3","v":"3"},null,{"$f":"IF(AH105=4,\"Insignificante\",IF(AH105=8,\"Menor\",IF(AH105=12,\"Moderado\",IF(AH105=16,\"Mayor\",IF(AH105=20,\"Catastrófico\",IF(AH105=\"No aplica\",\"No aplica\",\" \"))))))","v":" "},{"$f":"Q105","v":0},{"$f":"R105","v":" "},{"$f":"IFERROR(AE105*AH105,\"No aplica\")","v":0},{"$f":"IF(AND(AE105=1,AH105=4),\"Aceptable\",IF(AND(AE105=2,AH105=4),\"Aceptable\",IF(AND(AE105=3,AH105=4),\"Aceptable\",IF(AND(AE105=4,AH105=4),\"Tolerable\",IF(AND(AE105=5,AH105=4),\"Importante\",IF(AND(AE105=1,AH105=8),\"Aceptable\",IF(AND(AE105=2,AH105=8),\"Aceptable\",IF(AND(AE105=3,AH105=8),\"Tolerable\",IF(AND(AE105=4,AH105=8),\"Importante\",IF(AND(AE105=5,AH105=8),\"Importante\",IF(AND(AE105=1,AH105=12),\"Tolerable\",IF(AND(AE105=2,AH105=12),\"Tolerable\",IF(AND(AE105=3,AH105=12),\"Importante\",IF(AND(AE105=4,AH105=12),\"Importante\",IF(AND(AE105=5,AH105=12),\"Inaceptable\",IF(AND(AE105=1,AH105=16),\"Importante\",IF(AND(AE105=2,AH105=16),\"Importante\",IF(AND(AE105=3,AH105=16),\"Inaceptable\",IF(AND(AE105=4,AH105=16),\"Inaceptable\",IF(AND(AE105=5,AH105=16),\"Inaceptable\",IF(AND(AE105=1,AH105=20),\"Importante\",IF(AND(AE105=2,AH105=20),\"Inaceptable\",IF(AND(AE105=3,AH105=20),\"Inaceptable\",IF(AND(AE105=4,AH105=20),\"Inaceptable\",IF(AND(AE105=5,AH105=20),\"Inaceptable\",IF(AE105=\"No aplica\",\"No aplica\",\" \"))))))))))))))))))))))))))","v":" "},{"$f":"J105&4","v":"4"},null,{"$f":"AC105","v":0},1]
[null,null,null,null,2,null,null,2,null,null,null,null,null,null,null,null,null,null,null,2,null,null,null,null,null,null,null," ",null,null,null,null,null,null,null,null,null,null,null,null,null,null,2]
[null,null,null,null,3,null,null,3,null,null,null,null,null,null,null,null,null,null,null,3,null,null,null,null,null,null,null," ",null,null,null,null,null,null,null,null,null,null,null,null,null,null,3]
[null,null,null,null,4,null,null,4,null,null,null,null,null,null,null,null,null,null,null,4,null,null,null,null,null,null,null," ",null,null,null,null,null,null,null,null,null,null,null,null,null,null,4]
[null,null,null,null,5,null,null,5,null,null,null,null,null,null,null,null,null,null,null,5,null,null,null,null,null,null,null," ",null,null,null,null,null,null,null,null,null,null,null,null,null,null,5]

{"sheet":"Anexos","index":4,"n_rows":202,"n_cols":7,"rows_kept":202,"cut":false,"hidden":false,"merged":[[14,1,14,5],[15,1,15,5],[16,1,16,5],[81,3,81,11],[81,1,81,2],[78,1,78,2],[79,1,79,2],[78,3,78,11],[79,3,79,11],[80,3,80,11],[80,1,80,2],[25,6,25,11],[21,6,21,11],[22,6,22,11],[13,1,13,5],[74,1,74,11],[23,1,23,5],[24,1,24,5],[25,1,25,5],[20,1,20,5],[21,1,21,5],[22,1,22,5],[17,1,17,5],[18,1,18,5],[19,1,19,5],[18,6,18,11],[19,6,19,11],[20,6,20,11],[23,6,23,11],[24,6,24,11],[86,1,86,2],[86,3,86,11],[87,3,87,11],[88,3,88,11],[90,3,90,11],[89,3,89,11],[87,1,90,2],[94,1,94,11],[95,1,95,11],[96,1,96,11],[97,1,97,11],[98,1,98,11],[99,1,99,11],[100,1,100,11],[101,1,101,11],[102,1,102,11],[201,0,201,12],[13,6,13,11],[15,6,15,11],[14,6,14,11],[16,6,16,11],[17,6,17,11]]}
[]
[]
[]
[]
[]
[]
[]
[]
[]
[]
[]
[null,"Anexo 1. Correspondencia entre los procesos y los objetivos estratégicos"]
[]
[null,"OBJETIVO ESTRATÉGICO",null,null,null,null,"PROCESOS ASOCIADOS"]
[null,"Objetivo No. 1  Brindar una respuesta integral a las víctimas para que sean y se sientan reparadas.",null,null,null,null,"Gestión de Asistencia, Atención y Reparación Integral"]
[null,"Objetivo No. 2 Fortalecer la capacidad del Estado para dar respuesta a las emergencias humanitarias y evitar nuevas violaciones a los Derechos Humanos.",null,null,null,null,"Gestión de Prevención y Atención a Emergencias"]
[null,"Objetivo No. 3 Visibilizar a las víctimas y garantizar su participación efectiva. ",null,null,null,null,"Gestión de comunicación \nParticipación y visibillización de las víctimas"]
[null,"Objetivo No. 4 Poner en marcha conjuntamente con las entidades (nacionales y territoriales) una estrategia integral para la movilización del SNARIV",null,null,null,null,"Gestión Interinstitucional"]
[null,"Objetivo No. 5 Coordinar que la oferta institucional esté implementada en territorio.",null,null,null,null,"Gestión Interinstitucional\nGestión de Asistencia, Atención y Reparación Integral\nGestión de Atención al Ciudadano"]
[null,"Objetivo No. 6 Lograr una ejecución Presupuestal óptima, eficiente y transparente.",null,null,null,null,"Planeación Estratégica\nGestión financiera\nSeguimiento y Mejora"]
[null,"Objetivo No. 7 Buscar y gestionar nuevos recursos que apoyen la labor misional de la entidad.",null,null,null,null,"Planeación Estratégica\nGestión de Cooperación"]
[null,"Objetivo No. 8 Implementar mecanismos de atención, asistencia y reparación integral eficientes y eficaces para las víctimas.",null,null,null,null,"Gestión de Asistencia, Atención y Reparación Integral\nGestión de Atención al Ciudadano\nGestión de Registro y Valoración\nGestión de Prevención y Atención a Emergencias"]
[null,"Objetivo No. 9  Incorporar los enfoques diferenciales, de género y psicosocial en los procesos misionales.",null,null,null,null,"Todos los procesos misionales"]
[null,"Objetivo No. 10 Fortalecer los procesos internos de la Unidad",null,null,null,null,"Direccionamiento Estratégico\nEvaluación Independiente\nSeguimiento y Mejora\nGestión de Comunicación\nGestión de Tecnologías de la Información\nGestión jurídica\nGestión contractual\nGestión del Talento Humano\nGestión Documental\nGestión Financiera\nGestión de Cooperación\nGestión Administrativa"]
[null,"Objetivo No.11 Contar con un sistema de información integral, para la trazabilidad de la víctima desde su declaración hasta su reparación.",null,null,null,null,"Gestión de tecnología de la información\nGestión de la información\nGestión de Registro y Valoración"]
[null,"Objetivo No. 12 Contar con una Estructura organizacional y planta de personal  altamente motivada y coherente con las necesidades de la Entidad.",null,null,null,null,"Gestión del Talento Humano"]
[]
[]
[null,"Anexo 2. Criterios de calificación de la probabilidad de ocurrencia del riesgo"]
[]
[]
[]
[]
[]
[]
[]
[]
[]
[]
[]
[]
[]
[]
[]
[]
[]
[]
[]
[]
[]
[null,"Anexo 3. Criterios de calificación de las consecuencias o impactos que genera el riesgo"]
[]
[]
[]
[]
[]
[]
[]
[]
[]
[]
[]
[]
[]
[]
[]
[]
[]
[]
[]
[]
[]
[]
[]
[null,"Para los efectos de tipo legal, se manejan una serie de conceptos que son importantes incluir en esta metodología para un mejor entendimiento, veamos:"]
[]
[null,"Formas de culpabilidad"]
[]
[null,"Dolo",null,"Forma de incurrir en falta disciplinaria consistente en el conocimiento del servidor público de los hechos constitutivos de la infracción y a pesar de lo cual quiere su realización. La forma de incurrir puede ser por acción o por omisión."]
[null,"Culpa",null,"Forma de incurrir en falta disciplinaria, por no actuar con el deber de cuidado exigido en una situación concreta."]
[null,"Culpa grave",null,"Cuando se incurre en falta disciplinaria por inobservancia del cuidado necesario que cualquier persona del común imprime a sus actuaciones."]
[null,"Culpa gravísima",null,"Cuando se incurre en falta disciplinaria por ignorancia supina, desatención elemental o violación manifiesta de reglas de obligatorio cumplimiento. Podría interpretarse como una forma muy semejante al dolo."]
[]
[]
[null,"Clasificación de las faltas"]
[]
[null,"Faltas gravísimas",null,"Se traducen en la imputación taxativa o cerrada del hecho generador o conducta constitutiva de las faltas que están fijadas en el Artículo 48 de la Ley 734 de 2002."]
[null,"Faltas graves y leves ",null,"Se habrá de entender como el incumplimiento de los deberes, el abuso de los derechos, la extralimitación de las funciones, o la violación al régimen de prohibiciones, impedimentos, inhabilidades, incompatibilidades o conflicto de intereses consagrados en la Constitución o en la ley."]
[null,null,null,"En razón  a la imposibilidad práctica de encuadrar en forma detallada y exhaustiva las posibles faltas de los servidores públicos en el desempeño de sus funciones constitucionales y legales, las faltas no están taxativas en el código disciplinario único, sino que están bajo de nominaciones genéricas y amplias llamadas “tipos abiertos” cuya concretización le corresponde al fallador disciplinario. "]
[null,null,null,"En todo caso, estas conductas deben complementarse con las normas en las que se consagren los deberes, funciones, prohibiciones del funcionario."]
[null,null,null,"Por consiguiente, el investigador disciplinario dispone de un campo amplio para determinar si la conducta investigada se subsume o no en los supuestos de hecho de los tipos legales correspondientes, y si fue cometida con dolo o con culpa, lo mismo que su mayor o menor grado de gravedad, con base en los criterios señalados en el Artículo 43 del Código Disciplinario, lo cual obviamente no significa que aquel cree normas y que asuma por consiguiente el papel de legislador, ya que sólo aplica, en el sentido propio del término, las creadas por este último con las mencionadas características."]
[]
[null,"Criterios para determinar la gravedad o levedad de la falta"]
[]
[null,"1. El grado de culpabilidad. "]
[null,"2. La naturaleza esencial del servicio. "]
[null,"3. El grado de perturbación del servicio. "]
[null,"4. La jerarquía y mando que el servidor público tenga en la respectiva institución. "]
[null,"5. La trascendencia social de la falta o el perjuicio causado. "]
[null,"6. Las modalidades y circunstancias en que se cometió la falta, que se apreciarán teniendo en cuenta el cuidado empleado en su preparación, el nivel de aprovechamiento de la confianza depositada en el investigado o de la que se derive de la naturaleza del cargo o función, el grado de participación en la comisión de la falta, si fue inducido por un superior a cometerla, o si la cometió en estado de ofuscación originado en circunstancias o condiciones de difícil prevención y gravedad extrema, debidamente comprobadas. "]
[null,"7. Los motivos determinantes del comportamiento. "]
[null,"8. Cuando la falta se realice con la intervención de varias personas, sean particulares o servidores públicos"]
[null,"9. La realización típica de una falta objetivamente gravísima cometida con culpa grave, será considerada falta grave. "]
[]
[]
[null,"Anexo 4. Criterios de calificación de cada control"]
[]
[]
[]
[]
[]
[]
[]
[]
[]
[]
[]
[]
[]
[]
[]
[]
[]
[]
[]
[]
[]
[]
[]
[]
[null,"Anexo 5. Lineamientos generales para el tratamientos de los riesgos"]
[]
[]
[]
[]
[]
[]
[]
[]
[]
[]
[]
[]
[]
[]
[]
[]
[]
[]
[]
[]
[]
[]
[]
[null,"Anexo 6. Cronograma de trabajo"]
[]
[]
[]
[]
[]
[]
[]
[]
[]
[]
[]
[]
[]
[]
[]
[]
[]
[]
[]
[]
[]
[]
[]
[]
[]
[]
[]
[]
[]
[]
[]
[]
[]
[]
[]
[]
[]
[]
[]
[]
[]
[]
[]
[]
[]
[]
["Oficina Asesora de Planeación"]

{"sheet":"Anexos (2)","index":5,"n_rows":66,"n_cols":9,"rows_kept":66,"cut":false,"hidden":true,"merged":[[50,2,50,3],[50,4,50,5],[9,1,9,7],[25,1,26,1],[25,2,26,2],[25,3,26,3],[25,4,25,8],[38,1,39,1],[38,2,39,2],[38,3,39,4],[38,5,38,6],[40,3,40,4],[41,3,41,4],[42,3,42,4],[43,3,43,4],[44,3,44,4],[54,2,54,3],[54,4,54,5],[72,3,72,4],[51,2,51,3],[51,4,51,5],[52,2,52,3],[52,4,52,5],[53,2,53,3],[53,4,53,5]]}
[]
[]
[]
[]
[]
[]
[]
[]
[]
[null,"CRITERIOS PARA EVALUAR EL RIESGO"]
[]
[]
[null,"I.     CRITERIOS DE CALIFICACIÓN DE LA PROBABILIDAD DE OCURRENCIA DEL RIESGO "]
[]
[null,"Nivel DAFP","Nivel equivalente \npara la UNIDAD","Valor","Descripción","Frecuencia"]
[null,"Raro","Muy baja",1,"El evento puede ocurrir solo en circunstancias excepcionales","No se ha presentado\n en el año"]
[null,"Improbable","Baja",2,"El evento puede ocurrir en algún momento","Una vez al año"]
[null,"Posible","Media",3,"El evento podría ocurrir en algún momento","Hasta 3 veces al año"]
[null,"Probable","Alta",4,"El evento probablemente ocurrirá en la mayoría de las circunstancias","Hasta 5 veces al año"]
[null,"Casi seguro","Muy alta",5,"Se espera que el evento ocurra en la mayoría de las circunstancias","Más de 5 veces al año"]
[]
[]
[]
[null,"II.      CRITERIOS DE CALIFICACIÓN DE LAS CONSECUENCIAS O IMPACTO QUE GENERA EL RIESGO"]
[]
[null,"Nivel","Valor","Descripción","Efectos definidos en la metodología"]
[null,null,null,null,"Salud de personas","Credibilidad o imagen","Operacional","Seguridad de la información","Legales"]
[null,"Insignificante",4,"Si el hecho llegara a presentarse, tendría consecuencias o efectos mínimos sobre la entidad","Lesiones menores\n(sin incapacidad)","Grupo de funcionarios de un proceso","Ajustes a una actividad concreta","Personal","1. Amonestaciones escritas por faltas disciplinarias leves culposas \n2.  Amonestaciones de orden fiscal"]
[null,"Menor",8,"Si el hecho llegara a presentarse, tendría bajo impacto o efecto sobre la Entidad","Incapacidad temporal \n(1 a 30 dias de incapacidad)","Grupo de funcionarios hasta de 3 procesos","Cambios en los procedimientos","Equipo de trabajo","1. Multas por faltas disciplinarias leves dolosas \n2. Multas del orden fiscal, penal o sancionatorio"]
[null,"Moderado",12,"Si el hecho llegara a presentarse, tendría medianas consecuencias o efectos sobre la entidad","Incapacidad temporal \n(31 a 179 dias)","Todos los funcionarios de la Unidad","Cambios en la interacción de los procesos","Relativa al proceso","Suspensiones por conducta graves culposas"]
[null,"Mayor",16,"Si el hecho llegara a presentarse, tendría altas consecuencias o efectos sobre la entidad","Incapacidad permanente \n(a partir de 180 días)","Grupo de usuarios","Intermitencia en el servicio","Institucional","1. Condenas contra la Unidad en la Jurisdicción Contencioso - Administrativa \n2. Incumplimientos contractuales por parte de la Unidad \n3. Suspensión del cargo e inhabilidad especial por conductas graves dolosas o gravísimas \n4. Restricción de derechos diferentes a la libertad de orden penal"]
[null,"Catastrófico",20,"Si el hecho llegara a presentarse, tendría desastrosas consecuencias o efectos sobre la entidad","Fatalidad","Usuarios país","Paro total del proceso","Estratégica","1. Destitución e inhabilidad general por conductas gravísimas dolosas o  culpa gravísima \n2. Remoción o terminación de la relación laboral por justa causa                                    \n3. Restricciones a la libertad de orden sancionatorio o penal "]
[]
[]
[]
[]
[null,"III.     CRITERIOS DE CALIFICACIÓN PARA CADA CONTROL"]
[]
[null,"Nivel","Valor","Descripción de la calificación de cada control",null,"Cuadrante a disminuir \nuna vez calificado el control"]
[null,null,null,null,null,"En ocurrencia","En impacto"]
[null,"Nulo",1,"a. NO existen controles",null,0,0]
[null,"Bajo",2,"a. Existe el control\nb. Se aplica pero NO es suficientemente efectivo",null,0,0]
[null,"Medio",3,"a. Existe el control\nb. Se aplica y es efectivo\nc. Tiene definido los responsables de la ejecución y seguimiento del control",null,1,1]
[null,"Alto",4,"a. Existe el control\nb. Se aplica y es efectivo\nc. Tiene definido los responsables de la ejecución y seguimiento del control\nd. La periodicidad de aplicación va acorde con la frecuencia de ejecución de las actividades para el cual se estableció el control",null,1,1]
[null,"Muy alto",5,"a. Existe el control\nb. Se aplica y es efectivo,\nc. Tiene definido los responsables de la ejecución y seguimiento del control\nd. La periodicidad de aplicación va acorde con la frecuencia de ejecución de las actividades para el cual se estableció el control\ne. Se encuentra debidamente documentado y formalizado",null,2,2]
[]
[]
[]
[null,"IV.     LINEAMIENTOS PARA EL TRATAMIENTO DEL RIESGO"]
[]
[null,"Evaluación","Descripción",null,"Medida de tratamiento sugeridas"]
[null,"Inaceptable\n(Extrema)","Se requiere la aplicación de una acción inmediata.  Planes de respuesta formulados, implementados y reportados a la alta dirección.",null,"Es aconsejable, si es posible, eliminar la actividad que genera el riesgo, de lo contrario se sugiere implementar nuevos controles. (Medidas sugeridas: reducir, evitar, compartir o transferir el riesgo)."]
[null,"Importante\n(Alta)","Requiere atención de la alta dirección acompañado de planes de respuesta formulados e implementados. La respuesta a la acción debe darse a corto plazo.",null,"Se debe tomar medidas para bajar la severidad. Se recomienda fortalecer y mejorar los controles existentes. (Medidas sugeridas: reducir, evitar, compartir o transferir el riesgo)."]
[null,"Tolerable\n(Moderada)","Debe ser administrado con procedimientos normales de control. La respuesta a la acción puede darse a mediano plazo",null,"Se pueden tomar medidas para bajar la severidad. De ser posible, se debe conservar y mejorar los controles. (Medidas sugeridas: asumir o reducir el riesgo)."]
[null,"Aceptable\n(Baja)","Se administra con procedimientos rutinarios. No requiere de acciones adicionales a los existentes.",null,"Se puede asumir el riesgo sin necesidad de tomar otras medidas de control diferentes a las existentes. (Medidas sugeridas: asumir el riesgo)."]
[]
[]
[]
[null,"V.      INTERPRETACIÓN DE LOS RESULTADOS DEL \"ÍNDICE DE RIESGOS\""]
[]
[null,"Índice de Riesgo - IR","Nivel de Gestión de Riesgos - NGR","Descripción"]
[null,"De 1 al 20",5,"Prevención muy alta"]
[null,"De 21 al 40",4,"Prevención alta"]
[null,"De 41 al 60",3,"Prevención media"]
[null,"De 61 al 80",2,"Prevención baja"]
[null,"De 81 al 100",1,"Prevención muy baja"]

{"sheet":"Glosario","index":6,"n_rows":119,"n_cols":3,"rows_kept":119,"cut":false,"hidden":false,"merged":[[118,0,118,4]]}
[]
[]
[]
[]
[]
[]
[]
[]
[]
[null,null,"Actividad: Agrupación de tareas que hace parte de un Proceso. "]
[]
[null,null,"Aceptar: medida de tratamiento del riesgo en la cual se aceptan las consecuencias del riesgo por considerar muy baja la probabilidad de su ocurrencia y leves sus consecuencias."]
[]
[null,null,"Ambiente: Entorno, contexto. "]
[]
[null,null,"Autocontrol: Capacidad de controlarse uno mismo."]
[]
[null,null,"Autogestión: Capacidad institucional para coordinar las acciones que le permiten cumplir con el Mandato Constitucional y con las competencias y normas que la rigen. "]
[]
[null,null,"Autorregulación: Capacidad institucional para reglamentar, con base en la Constitución y las leyes, los asuntos propios de su función y definir aquellas normas, políticas y procedimientos que permitan la coordinación efectiva y transparente de sus acciones. "]
[]
[null,null,"Calificación de Riesgos: cuantificación de los riesgos de acuerdo con la probabilidad de ocurrencia o frecuencia y sus consecuencias."]
[]
[null,null,"Causa: Origen o razón de algo que llamamos Efecto. En el componente Administración de Riesgos: es el motivo o razón por la que se genera un riesgo. "]
[]
[null,null,"Compartir: forma de reducir los efectos de un riesgo al transferirlos a un tercero o al responsabilizar a las partes en forma conjunta."]
[]
[null,null,"Componente: Agrupación de elementos que hace parte de un subsistema. "]
[]
[null,null,"Consecuencia: daño que se deriva de la ocurrencia de un riesgo."]
[]
[null,null,"Contexto estratégico: Conjunto de circunstancias internas y externas que pueden afectar a la entidad positiva o negativamente con relación al cumplimiento de sus objetivos. "]
[]
[null,null,"Control correctivo: tipo de control que permite adoptar acciones necesarias para mejorar la situación generada por la materialización de un riesgo o para mejorar los controles diseñados previamente, si se determina que su funcionamiento no corresponde con las expectativas con las cuales fueron diseñados."]
[]
[null,null,"Control detectivo: tipo de control diseñado para descubrir un evento, anomalía o un resultado no buscado en el momento de su ocurrencia, o posteriormente."]
[]
[null,null,"Control preventivo: tipo de control diseñado para actuar sobre la causa de los riesgos, con el fin de disminuir la probabilidad de su ocurrencia."]
[]
[null,null,"Control de protección: tipo de control diseñado para disminuir los efectos inmediatos de los riesgos y el alcance de los daños que pueden producir."]
[]
[null,null,"Descripción del Riesgo: narración o explicación de la forma como puede presentarse un riesgo."]
[]
[null,null,"Efectividad de los controles: medida de lo apropiado de un control, establecida bajo dos parámetros: su eficiencia y eficacia."]
[]
[null,null,"Efecto: consecuencia que puede traer la ocurrencia del riesgo."]
[]
[null,null,"Eficacia de los controles: medida de lo apropiado de un control establecida al determinar su contribución con el objetivo del mismo, es decir, con la disminución del riesgo."]
[]
[null,null,"Eficacia de los controles: medida del uso adecuado de los recursos en la aplicación de un control."]
[]
[null,null,"Elemento: Agrupación de factores que hace parte de un componente. "]
[]
[null,null,"Evaluación de Riesgos: Factor del elemento Valoración del Riesgo que muestra el procedimiento para definir cuando puede aceptarse o no el riesgo, de acuerdo con su frecuencia e impacto."]
[]
[null,null,"Evento: Suceso; particularmente suceso posible. "]
[]
[null,null,"Evitar: medida de tratamiento de los  riesgos que consisten en eliminar la posibilidad de su ocurrencia."]
[]
[null,null,"Exposición al Riesgo: grado de repetición de un acto al cual está asociado un riesgo."]
[]
[null,null,"Frecuencia del riesgo: medida estadística del número de veces que se presenta un riesgo en un período de tiempo."]
[]
[null,null,"Indicadores de riesgo: conjunto de variables cuantitativas y/o cualitativas que se constituyen en herramientas para realizar el monitoreo de los riesgos."]
[]
[null,null,"Identificación de riesgos: proceso para reconocer si existe un riesgo y definir sus características."]
[]
[null,null,"Impacto: Cambio logrado en la situación de la comunidad como resultado del producto de un proceso. Es el nivel más elevado o la finalidad última del proceso y donde se genera la totalidad de los beneficios previstos. Es equivalente a Valor Agregado. En el elemento Valoración de Riesgos, es la magnitud del deterioro en la situación de la entidad, como resultado de la materialización de un riesgo."]
[]
[null,null,"Mapa de riesgo: Herramienta organizacional que facilita la visualización y entendimiento de los riesgos, y la definición de una estrategia para su apropiada administración."]
[]
[null,null,"Medidas de tratamiento: opciones contempladas para manejar o administrar un riesgo. Respuestas ante los riesgos."]
[]
[null,null,"Meta: Resultado que se pretende alcanzar en un plazo determinado para avanzar hacia el cumplimiento de un objetivo. Su medición debe hacerse en términos de tiempo, cantidad y, si es posible, calidad. "]
[]
[null,null,"Mitigar: Moderar, aplacar. "]
[]
[null,null,"Monitoreo de riesgos: Evaluación permanente del comportamiento de los riesgos, a través de Índices cualitativos o cuantitativos."]
[]
[null,null,"Perdida: consecuencia negativa que puede ocasionar un riesgo, sea financiera o de otro tipo."]
[]
[null,null,"Plan: Proyecto, programa de las cosas que se van a hacer y de cómo hacerlas. "]
[]
[null,null,"Políticas: Principios que sirven de guía y dirigen los esfuerzos de una organización para alcanzar sus objetivos. "]
[]
[null,null,"Políticas de Administración de Riesgos: guía para la toma de decisiones o criterios de acción que rigen a todos los empleados con relación a la administración de riesgos. Trasmiten la posición de la dirección respecto de su actitud ante los riesgos y fijan lineamientos para la protección de los recursos, conceptos de calificación de riesgos, prioridades en la respuesta y la forma de administrarlos."]
[]
[null,null,"Posibilidad: condición o característica para que llegue a ocurrir un hecho."]
[]
[null,null,"Probabilidad: medida estadística (expresada en un porcentaje o una razón), de la posibilidad de ocurrencia de un riesgo."]
[]
[null,null,"Procedimiento: Método o sistema estructurado para ejecutar algunas cosas. Acto o serie de actos u operaciones con que se hace una cosa."]
[]
[null,null,"Proceso: Conjunto de actividades que realiza una organización, mediante la transformación de unos insumos, para crear, producir y entregar sus productos, de tal manera que satisfagan las necesidades de sus clientes. "]
[]
[null,null,"Reducir: medida de tratamiento de los riesgos que busca disminuir la posibilidad de ocurrencia de un riesgo, sus consecuencias o ambas."]
[]
[null,null,"Riesgo: 1. Evento capaz de poner en peligro el cumplimiento de los objetivos de la Entidad Pública con eficiencia, eficacia y calidad. 2. La posibilidad de que ocurra dicho evento. "]
[]
[null,null,"Riesgo aceptable: aquel que se considera normal para una actividad determinada. Es el riesgo que tiene una probabilidad o frecuencia de ocurrencia muy baja y su impacto leve."]
[]
[null,null,"Riesgo inaceptable: riesgo que por la evaluación de su probabilidad y de sus consecuencias requiere ser evitado o eliminado, porque puede traer consecuencias catastróficas."]
[]
[null,null,"Servidores públicos: Son los miembros de las corporaciones públicas, los empleados y trabajadores del Estado y de sus entidades descentralizadas territorialmente y por servicios."]
[]
[null,null,"Socializar: Compartir la información con todos los funcionarios del grupo al que pueda interesar. "]
[]
[null,null,"Subsistema: Agrupación de Componentes que hace parte de un Sistema."]
[]
[null,null,"Valoración de riesgos: Es un Elemento del Componente Administración de Riesgos que comprende el conjunto de acciones por las cuales se estima la magnitud de los riesgos (frecuencia e impacto), y se evalúan para determinar si pueden aceptarse o no."]
[]
[]
[null,null,"Nota: Este glosario fue tomado del libro \"Administración de Riesgos: Un enfoque empresarial\". Rubí Consuelo Mejía Quijano. Colección Académica EAFIT. Mayo 2006"]
[]
[]
[]
[]
[]
["Oficina Asesora de Planeación"]

{"sheet":"LISTA PARA VALIDACION","index":7,"n_rows":218,"n_cols":8,"rows_kept":218,"cut":false,"hidden":true,"merged":[[1,0,1,1],[2,0,2,1],[3,0,3,1],[167,0,169,0],[170,0,172,0],[92,0,93,0],[92,1,93,1],[173,0,176,0],[139,0,142,0],[143,0,147,0],[148,0,157,0],[158,0,161,0],[162,0,166,0],[92,2,93,2],[92,3,92,7],[106,0,107,0],[106,1,107,1],[106,2,107,3],[106,4,106,5],[108,2,108,3],[109,2,109,3],[110,2,110,3],[111,2,111,3],[112,2,112,3]]}
[]
[]
["Información utilizada para los hipervinculos"]
["FAVOR NO ELIMINAR ESTA HOJA"]
[]
[]
[]
["OBJETIVOS ESTRATEGICOS"]
["Objetivo 1. Trabajar conjuntamente con las víctimas en el proceso de reparación integral para la reconstrucción y transformación de sus proyectos de vida"]
["Objetivo 2. Acercar el Estado a las víctimas para brindarles una oferta pertinente, eficaz, sostenible y oportuna "]
["Objetivo 3. Definir con las entidades territoriales la implementación de la Ley 1448/11, sus Decretos reglamentarios y los Decretos Ley "]
["Objetivo 4. Vincular de manera activa a la sociedad civil y a la comunidad internacional en los procesos de reparación integral a las víctimas del conflicto "]
["Objetivo 5. Fortalecer la cultura de confianza, colaboración e innovación para garantizar una atención digna, respetuosa y diferencial "]
[]
[]
[]
[]
[]
[]
[]
[]
[]
[]
[]
[]
["PROCESOS"]
["Direccionamiento Estratégico"]
["Planeación Estratégica"]
["Gestión de Prevención y Atención a Emergencias"]
["Gestión de Atención al Ciudadano"]
["Gestión de Registro y Valoración"]
["Gestión de Asistencia y Reparación "]
["Gestión de la Información"]
["Gestión Interinstitucional"]
["Participación y visibilización de las Víctimas"]
["Gestión de Comunicación"]
["Gestión de Tecnologías de la Información"]
["Gestión Jurídica"]
["Gestión Contractual"]
["Gestión Talento Humano"]
["Gestión Documental"]
["Gestión Financiera"]
["Control Interno Disciplinario"]
["Gestión de Cooperación"]
["Gestión Administrativa"]
["Evaluación Independiente"]
["Seguimiento y Mejora"]
[]
[]
[]
[]
[]
["EFECTOS O CONSECUENCIAS"]
["Salud en las personas"]
["Credibilidad o imagen"]
["Operacional"]
["Seguridad de la información"]
["Legales"]
[]
[]
[]
[]
[]
["TIPO DE RIESGO"]
["Estratégico"]
["Laboral"]
["Imagen"]
["Operativo"]
["Corrupción"]
["Financiero"]
["Cumplimiento"]
["Tecnología"]
[]
[]
[]
[]
[" "]
["VALOR DE LA OCURRENCIA"]
[]
["Nivel DAFP","Nivel equivalente \npara la UNIDAD","Valor","Descripción","Frecuencia"]
["Raro","Muy bajo",1,"El evento puede ocurrir solo en circunstancias excepcionales","No se ha presentado\n en el año"]
["Improbable","Bajo",2,"El evento puede ocurrir en algún momento","Una vez al año"]
["Posible","Medio",3,"El evento podría ocurrir en algún momento","Hasta 3 veces al año"]
["Probable","Alto",4,"El evento probablemente ocurrirá en la mayoría de las circunstancias","Hasta 5 veces al año"]
["Casi seguro","Muy alto",5,"Se espera que el evento ocurra en la mayoría de las circunstancias","Más de 5 veces al año"]
[]
[]
[]
[]
[]
["VALOR DEL IMPACTO"]
[]
["Nivel","Valor","Descripción","Efectos definidos en la metodología"]
[null,null,null,"Salud de personas","Credibilidad o imagen","Operacional","Seguridad de la información","Legales para los funcionarios o la Entidad"]
["Insignificante",4,"Si el hecho llegara a presentarse, tendría consecuencias o efectos mínimos sobre la entidad","Lesiones menores","Grupo de funcionarios de un proceso","Ajustes a una actividad concreta","Personal","1. Amonestaciones escritas por faltas disciplinarias leves culposas \n2.  Amonestaciones de orden fiscal"]
["Menor",8,"Si el hecho llegara a presentarse, tendría bajo impacto o efecto sobre la Entidad","Restricciones para trabajar","Grupo de funcionarios hasta de 3 procesos","Cambios en los procedimientos","Equipo de trabajo","1. Multas por faltas disciplinarias leves dolosas \n2. Multas del orden fiscal, penal o sancionatorio"]
["Moderado",12,"Si el hecho llegara a presentarse, tendría medianas consecuencias o efectos sobre la entidad","Incapacidad temporal","Todos los funcionarios de la Unidad","Cambios en la interacción de los procesos","Relativa al proceso","Suspensiones por conducta graves culposas"]
["Mayor",16,"Si el hecho llegara a presentarse, tendría altas consecuencias o efectos sobre la entidad","Incapacidad permanente","Grupo de usuarios","Intermitencia en el servicio","Institucional","1. Condenas contra la Unidad en la Jurisdicción Contencioso - Administrativa \n2. Incumplimientos contractuales por parte de la Unidad \n3. Suspensión del cargo e inhabilidad especial por conductas graves dolosas o gravísimas \n4. Restricción de derechos diferentes a la libertad de orden penal"]
["Catastrófico",20,"Si el hecho llegara a presentarse, tendría desastrosas consecuencias o efectos sobre la entidad","Fatalidad","Usuarios país","Paro total del proceso","Estratégica","1. Destitución e inhabilidad general por conductas gravísimas dolosas o  culpa gravísima \n2. Remoción o terminación de la relación laboral por justa causa                                    \n3. Restricciones a la libertad de orden sancionatorio o penal "]
[]
[]
[]
["MARCAR CON UNA X"]
["X"]
[]
[]
["Nivel","Valor","Descripción de la calificación de cada control",null,"Cuadrante a disminuir \nuna vez calificado el control"]
[null,null,null,null,"En ocurrencia","En impacto"]
["Nulo",1,"a. NO existen controles",null,0,0]
["Bajo",2,"a. Existe el control\nb. Se aplica pero NO es suficientemente efectivo",null,0,0]
["Medio",3,"a. Existe el control\nb. Se aplica y es efectivo\nc. Tiene definido los responsables de la ejecución y seguimiento del control\n",null,1,1]
["Alto",4,"a. Existe el control\nb. Se aplica y es efectivo\nc. Tiene definido los responsables de la ejecución y seguimiento del control\nd. La periodicidad de aplicación va acorde con la frecuencia de ejecución de las actividades para el cual se estableció el control",null,1,1]
["Muy alto",5,"a. Existe el control\nb. Se aplica y es efectivo,\nc. Tiene definido los responsables de la ejecución y seguimiento del control\nd. La periodicidad de aplicación va acorde con la frecuencia de ejecución de las actividades para el cual se estableció el control\ne. Se encuentra debidamente documentado y formalizado",null,2,2]
[]
[]
[]
["MARCAR SI O NO"]
["SI"]
["NO"]
[]
[]
[]
[]
[]
[]
["MEDIDAS DE TRATAMIENTO"]
["Asumir el riesgo"]
["Reducir el riesgo"]
["Evitar el riesgo"]
["Compartir el riesgo"]
[]
[]
[]
[]
[]
[]
[]
[]
[]
["Direccionamiento Estratégico \n(Alta Dirección).","Concentración de autoridad o exceso de poder."]
[null,"Extralimitación de funciones."]
[null,"Ausencia de canales de comunicación."]
[null,"Amiguismo y clientelismo."]
["Financiero \n(Está relacionado con áreas de Planeación y Presupuesto).","Inclusión de gastos no autorizados."]
[null,"Inversiones de dineros públicos en entidades de dudosa solidez financiera, a cambio de beneficios indebidos para servidores públicos encargados de su administración."]
[null,"Inexistencia de registros auxiliares que permitan identificar y controlar los rubros de inversión."]
[null,"Archivos contables con vacíos de información."]
[null,"Afectar rubros que no corresponden con el objeto del gasto en beneficio propio o a cambio de una retribución económica."]
["De contratación \n(Como proceso o los procedimientos ligados a éste).","Estudios previos o de factibilidad superficiales."]
[null,"Estudios previos o de factibilidad manipulados por personal interesado en el futuro proceso de contratación. (Estableciendo necesidades inexistentes o aspectos que benefician a una firma en particular)."]
[null,"Pliegos de condiciones hechos a la medida de una firma en particular."]
[null,"Disposiciones establecidas en los pliegos de condiciones que permiten a los participantes direccionar los procesos hacia un grupo en particular, como la media geométrica."]
[null,"Restricción de la participación a través de visitas obligatorias innecesarias, establecidas en el pliego de condiciones."]
[null,"Adendas que cambian condiciones generales del proceso para favorecer a grupos determinados."]
[null,"Urgencia manifiesta inexistente."]
[null,"Designar supervisores que no cuentan con conocimientos suficientes para desempeñar la función."]
[null,"Concentrar las labores de supervisión de múltiples contratos en poco personal."]
[null,"Contratar con compañías de papel, las cuales son especialmente creadas para participar procesos específicos, que no cuentan con experiencia, pero si con músculo financiero."]
["De información y documentación","Concentración de información de determinadas actividades o procesos en una persona."]
[null,"Sistemas de información susceptibles de manipulación o adulteración."]
[null,"Ocultar a la ciudadanía la información considerada pública."]
[null,"Deficiencias en el manejo documental y de archivo."]
["De investigación y sanción","Fallos amañados."]
[null,"Dilatación de los procesos con el propósito de obtener el vencimiento de términos o la prescripción del mismo."]
[null,"Desconocimiento de la ley, mediante interpretaciones subjetivas de las normas vigentes para evitar o postergar su aplicación."]
[null,"Exceder las facultades legales en los fallos."]
[null,"Soborno (Cohecho)."]
["De actividades regulatorias","Decisiones ajustadas a intereses particulares."]
[null,"Tráfico de influencias, (amiguismo, persona influyente)."]
[null,"Soborno (Cohecho)."]
["De trámites y/o servicios internos y externos","Cobro por realización del trámite, (Concusión)."]
[null,"Tráfico de influencias, (amiguismo, persona influyente)."]
[null,"Falta de información sobre el estado del proceso del trámite al interior de la entidad."]
["De reconocimiento de un derecho, como la expedición de licencias y/o permisos","Cobrar por el trámite, (Concusión)."]
[null,"Imposibilitar el otorgamiento de una licencia o permiso."]
[null,"Ofrecer beneficios económicos para acelerar la expedición de una licencia o para su obtención sin el cumplimiento de todos los requisitos legales."]
[null,"Tráfico de influencias, (amiguismo, persona influyente)."]
[]
[]
[]
[]
[]
["DIRECCIONES"]
["Dirección general"]
["Oficina Asesora de Comunicaciones"]
["Oficina Asesora  de Planeación"]
["Oficina de Control Interno"]
["Oficina Asesora Jurídica"]
["Oficina de Tecnología de la Información"]
["Grupo de mujeres y género"]
["Grupo de niñez y juventud"]
["Grupo de personas con habilidades y capacidaddes diversas"]
["Subdirección general"]
["Dirección Gestión Interinstitucional"]
["Subdirección Coordinación SNARIV"]
["Subdirección Coordinación Nación - Territorio"]
["Subdirección de Participación"]
["Grupo de Derechos Humanos"]
["Dirección de Gestión Social y Humanitaria"]
["Subdirección Prevención y Emergencias "]
["Subdirección Asistencia y Atención"]
["Dirección de Reparación"]
["Subdirección de Reparación Individual"]
["Subdirección Reparación Colectiva"]
["Fondo de Reparación de Víctimas"]
["Grupo de Retornos y Reubicaciones"]
["Dirección de Registro y Gestión de la Información"]
["Subdirección de Valoración y Registro"]
["Subdirección Red Nacional de Información"]
["Dirección de Asuntos Etnicos"]
["Secretaría General"]
["Grupo de Gestión de Servicio al Ciudadano"]
["Grupo de Gestión del Talento Humano"]
["Grupo de Gestión Contractual"]
["Grupo de Gestión Financiera y Contable"]
["Grupo de Control Interno Disciplinario"]
["Grupo de Gestión Administrativa y Documental"]
["Dirección Territorial Bogotá"]

{"sheet":"DESPLEGABLE","index":8,"n_rows":76,"n_cols":13,"rows_kept":76,"cut":false,"hidden":true,"merged":[]}
[]
["TIPO DE RIESGO","Estratégico","Laboral","Imagen","Operativo","Corrupción","Financiero","Cumplimiento","Tecnología"]
["Estratégico",1,1,1,1,3,1,1,1]
["Laboral",2,2,2,2,5,2,2,2]
["Imagen",3,3,3,3,null,3,3,3]
["Operativo",4,4,4,4,null,4,4,4]
["Corrupción",5,5,5,5,null,5,5,5]
["Financiero"]
["Cumplimiento"]
["Tecnología"]
[]
[]
[]
["TIPO DE RIESGO","Estratégico1","Laboral1","Imagen1","Operativo1","Corrupción1","Financiero1","Cumplimiento1","Tecnología1"]
["Estratégico1",4,4,4,4,"No aplica",4,4,4]
["Laboral1",8,8,8,8,null,8,8,8]
["Imagen1",12,12,12,12,null,12,12,12]
["Operativo1",16,16,16,16,null,16,16,16]
["Corrupción1",20,20,20,20,null,20,20,20]
["Financiero1"]
["Cumplimiento1"]
["Tecnología1"]
[]
[]
[]
["TIPO DE RIESGO","Estratégico2","Laboral2","Imagen2","Operativo2","Corrupción2","Financiero2","Cumplimiento2","Tecnología2"]
["Estratégico2",1,1,1,1,"No aplica",1,1,1]
["Laboral2",2,2,2,2,null,2,2,2]
["Imagen2",3,3,3,3,null,3,3,3]
["Operativo2",4,4,4,4,null,4,4,4]
["Corrupción2",5,5,5,5,null,5,5,5]
["Financiero2"]
["Cumplimiento2"]
["Tecnología2"]
[]
[]
[]
[]
["TIPO DE RIESGO","Estratégico3","Laboral3","Imagen3","Operativo3","Corrupción3","Financiero3","Cumplimiento3","Tecnología3"]
["Estratégico3",4,4,4,4,"No aplica",4,4,4]
["Laboral3",8,8,8,8,null,8,8,8]
["Imagen3",12,12,12,12,null,12,12,12]
["Operativo3",16,16,16,16,null,16,16,16]
["Corrupción3",20,20,20,20,null,20,20,20]
["Financiero3"]
["Cumplimiento3"]
["Tecnología3"]
[]
[]
[]
["TIPO DE RIESGO","Estratégico4","Laboral4","Imagen4","Operativo4","Corrupción4","Financiero4","Cumplimiento4","Tecnología4"]
["Estratégico4","SI","SI","SI","SI","No aplica","SI","SI","SI"]
["Laboral4","NO","NO","NO","NO",null,"NO","NO","NO"]
["Imagen4"]
["Operativo4"]
["Corrupción4"]
["Financiero4"]
["Cumplimiento4"]
["Tecnología4"]
[]
[]
[null,1,2,3,4,5,6,7,8,9,10,11,12]
[null,"Brindar_una_respuesta_integral_a_las_víctimas_para_que_sean_y_se_sientan_reparadas","Fortalecer_la_capacidad_del_Estado_para_dar_respuesta_a_las_emergencias_humanitarias_y_evitar_nuevas_violaciones_a_los_Derechos_Humanos","Visibilizar_a_las_víctimas_y_garantizar_su_participación_efectiva","Poner_en_marcha_conjuntamente_con_las_entidades_nacionales_y_territoriales_una_estrategia_integral_para_la_movilización_del_SNARIV","Coordinar_que_la_oferta_institucional_esté_implementada_en_territorio","Lograr_una_ejecución_Presupuestal_óptima_eficiente_y_transparente","Buscar_y_gestionar_nuevos_recursos_que_apoyen_la_labor_misional_de_la_entidad","Implementar_mecanismos_de_atención_asistencia_y_reparación_integral_eficientes_y_eficaces_para_las_víctimas","Incorporar_los_enfoques_diferenciales_de_género_y_psicosocial_en_los_procesos_misionales","Fortalecer_los_procesos_internos_de_la_Unidad","Contar_con_un_sistema_de_información_integral_para_la_trazabilidad_de_la_víctima_desde_su_declaración_hasta_su_reparación","Contar_con_una_Estructura_organizacional_y_planta_de_personal_altamente_motivada_y_coherente_con_las_necesidades_de_la_Entidad"]
["Brindar una respuesta integral a las víctimas para que sean y se sientan reparadas","Gestión de Asistencia y Reparación","Gestión de Prevención y Atención a Emergencias","Gestión de comunicación ","Gestión Interinstitucional","Gestión Interinstitucional\n","Planeación Estratégica\n","Planeación Estratégica\n","Gestión de Asistencia y Reparación\n","Gestión de Prevención y Atención a Emergencias","Direccionamiento Estratégico","Gestión de tecnología de la información","Gestión de tecnología de la información"]
["Fortalecer la capacidad del Estado para dar respuesta a las emergencias humanitarias y evitar nuevas violaciones a los Derechos Humanos",null,null,"Participación y visibillización de las víctimas",null,"Gestión de Asistencia y Reparación\n","Gestión financiera","Gestión de Cooperación","Gestión de Atención al Ciudadano","Gestión de Atención al Ciudadano","Evaluación Independiente","Gestión de Registro y Valoración","Gestión de Registro y Valoración"]
["Visibilizar a las víctimas y garantizar su participación efectiva",null,null,"Gestión de Asistencia y Reparación",null,"Gestión de Atención al Ciudadano","Seguimiento y Mejora",null,"Gestión de Registro y Valoración","Gestión de Registro y Valoración","Seguimiento y Mejora","Gestión de la Información","Gestión de la Información"]
["Poner en marcha conjuntamente con las entidades nacionales y territoriales una estrategia integral para la movilización del SNARIV",null,null,null,null,null,null,null,"Gestión de Prevención y Atención a Emergencias","Gestión de Asistencia y Reparación","Gestión de Comunicación"]
["Coordinar que la oferta institucional esté implementada en territorio",null,null,null,null,null,null,null,null,"Gestión de la Información","Gestión de Tecnologías de la Información"]
["Lograr una ejecución Presupuestal óptima eficiente y transparente",null,null,null,null,null,null,null,null,"Gestión Interinstitucional","Gestión jurídica"]
["Buscar y gestionar nuevos recursos que apoyen la labor misional de la entidad",null,null,null,null,null,null,null,null,"Participación y Visibilización de las Víctimas","Gestión contractual"]
["Implementar mecanismos de atención asistencia y reparación integral eficientes y eficaces para las víctimas",null,null,null,null,null,null,null,null,null,"Gestión del Talento Humano"]
["Incorporar los enfoques diferenciales de género y psicosocial en los procesos misionales",null,null,null,null,null,null,null,null,null,"Gestión Documental"]
["Fortalecer los procesos internos de la Unidad",null,null,null,null,null,null,null,null,null,"Gestión Financiera"]
["Contar con un sistema de información integral para la trazabilidad de la víctima desde su declaración hasta su reparación",null,null,null,null,null,null,null,null,null,"Gestión de Cooperación"]
["Contar con una Estructura organizacional y planta de personal altamente motivada y coherente con las necesidades de la Entidad",null,null,null,null,null,null,null,null,null,"Gestión Administrativa"]
[null,null,null,null,null,null,null,null,null,null,"Control Interno Disciplinario"]